{"text_format":"1","workbook":"xlsx","n_sheets":11,"sheets":["Night ONE","Night ONE-option 2","NIGHT TWO","NIGHT THREE","Championship Night","GPI Ranking-Seeding","Team SB Donations","Teams","32 team Bracketology","# of games per night","Team # Match ups"],"not_rendered":{"charts":0,"images":0,"macros":1,"external_links":0,"defined_names":3,"comments":0,"pivot_tables":0},"unopened":[],"bounds":{"document_bytes":16777216,"sheet_cells":100000,"rows_first":2000,"rows_last":500,"rows_between":2000,"halvings":0,"cell_chars":16384,"cell_head_chars":4096},"cells_cut":0,"cells_raw":0,"read":"whole","date_system":"1900"}

{"sheet":"Night ONE","index":0,"n_rows":50,"n_cols":24,"rows_kept":50,"cut":false,"hidden":false,"merged":[[0,6,0,7]]}
["Night 1- ALL at Springdale",null,null,null,"  - Teams Play each team within their own Bracket",null,"Score",null,null,null,null,null,"RESULTS- Night One"]
["# games","time","Courts","Bracket","HOME","AWAY","W","L","Winner","Pt Diff",null,"Division","Teams","Win","Loss",null,"Team #","# of Games",null,"Bracket","NO BREAK","30 MIN","60 MIN","90 MIN"]
[1,"06:00:00","court 1","B1","CSTC- Spikological Warfare","SARC- Sand Diggers",null,null,null,{"$f":"G3-H3","v":0},null,"A","GS- Sand Gators",{"$f":"COUNTIF(I$3:I$50,M3)","v":0},{"$f":"3-N3","v":3},null,1,3,null,"A"]
[2,null,"court 2","B1","NR- Hit That Thang","SO- Team Kona",null,null,null,{"$f":"G4-H4","v":0},null,"A","LKP- Will Play for Sets",{"$f":"COUNTIF(I$3:I$50,M4)","v":0},3,null,2,3,null,"B"]
[3,null,"court 3","B2","LKP- Block You Like a Hurricane","LKP- Bumpn' Uglies",null,null,null,0,null,"A","LKP- Air Vectors",0,3,null,3,3,null,"C"]
[4,null,"court 4","B2","GS- Where's My Beaches At?","GS- Vicious & Delicious",null,null,null,0,null,"A","LKP- Pass It Around",0,3,null,4,3,null,"D"]
[5,null,"court 5","C2","LKP- Casual Sets","HG- Swingrays",null,null,null,0,null,"A","SO- Kiss My Ace",0,3,null,5,3,null,"E"]
[6,null,"court 6","C2","GS- El Toro's Revenge","SARC- Sets on the Beach",null,null,null,0,null,"A","SARC- $et for Life",0,3,null,6,3,null,"F"]
[7,"06:30:00","court 1","A1","SO- Kiss My Ace","SARC- $et for Life",null,null,null,0,null,"A","NR- Six Pack Attack",0,3,null,7,3,null,"G"]
[8,null,"court 2","A1","SARC- Volleywood","LKP- Air Vectors",null,null,null,0,null,"A","SARC- Volleywood",0,3,null,8,3,null,"H"]
[9,null,"court 3","D1","SARC- Raleigh Brawl","SARC- Good Bumps, Nice Sets",null,null,null,0,null,"B","CSTC- Spikological Warfare",{"$f":"COUNTIF(I$3:I$50,M19)","v":0},3,null,9,3]
[10,null,"court 4","D1","SARC- Here for Beer","SARC- Mizfits",null,null,null,0,null,"B","LKP- Block You Like a Hurricane",0,3,null,10,3]
[11,null,"court 5","C1","SARC- I'd Hit That","SARC- Dirt Devils",null,null,null,0,null,"B","GS- Vicious & Delicious",0,3,null,11,3]
[12,null,"court 6","C1","SARC- Unprotected Sets","SARC- Notorious D.I.G.",null,null,null,0,null,"B","NR- Hit That Thang",0,3,null,12,3]
[13,"07:00:00","court 1","C2","LKP- Casual Sets","GS- El Toro's Revenge",null,null,null,0,null,"B","GS- Where's My Beaches At?",0,3,null,13,3]
[14,null,"court 2","C2","HG- Swingrays","SARC- Sets on the Beach",null,null,null,0,null,"B","LKP- Bumpn' Uglies",0,3,null,14,3]
[15,null,"court 3","B1","CSTC- Spikological Warfare","NR- Hit That Thang",null,null,null,0,null,"B","SARC- Sand Diggers",0,3,null,15,3]
[16,null,"court 4","B1","SARC- Sand Diggers","SO- Team Kona",null,null,null,0,null,"B","SO- Team Kona",0,3,null,16,3]
[17,null,"court 5","B2","LKP- Block You Like a Hurricane","GS- Where's My Beaches At?",null,null,null,0,null,"C","SARC- Dirt Devils",{"$f":"COUNTIF(I$3:I$50,M11)","v":0},3,null,17,3]
[18,null,"court 6","B2","LKP- Bumpn' Uglies","GS- Vicious & Delicious",null,null,null,0,null,"C","SARC- I'd Hit That",0,3,null,18,3]
[19,"07:30:00","court 1","A2","LKP- Will Play for Sets","LKP- Pass It Around",null,null,null,0,null,"C","LKP- Casual Sets",0,3,null,19,3]
[20,null,"court 2","A2","GS- Sand Gators","NR- Six Pack Attack",null,null,null,0,null,"C","SARC- Unprotected Sets",0,3,null,20,3]
[21,null,"court 3","C1","SARC- I'd Hit That","SARC- Unprotected Sets",null,null,null,0,null,"C","SARC- Notorious D.I.G.",0,3,null,21,3]
[22,null,"court 4","C1","SARC- Dirt Devils","SARC- Notorious D.I.G.",null,null,null,0,null,"C","SARC- Sets on the Beach",0,3,null,22,3]
[23,null,"court 5","D2","CSTC- Volley Llamas","CSTC- Sand in Strange Places",null,null,null,0,null,"C","HG- Swingrays",0,3,null,23,3]
[24,null,"court 6","D2","GS- Rhymes with Stupid","SARC- Mojo Risin ",null,null,null,0,null,"C","GS- El Toro's Revenge",0,3,null,24,3]
[25,"08:00:00","court 1","A1","SO- Kiss My Ace","SARC- Volleywood",null,null,null,0,null,"D","SARC- Good Bumps, Nice Sets",0,3,null,25,3]
[26,null,"court 2","A1","SARC- $et for Life","LKP- Air Vectors",null,null,null,0,null,"D","CSTC- Sand in Strange Places",0,3,null,26,3]
[27,null,"court 3","B2","GS- Vicious & Delicious","LKP- Block You Like a Hurricane",null,null,null,0,null,"D","GS- Rhymes with Stupid",0,3,null,27,3]
[28,null,"court 4","B2","LKP- Bumpn' Uglies","GS- Where's My Beaches At?",null,null,null,0,null,"D","SARC- Mojo Risin ",0,3,null,28,3]
[29,null,"court 5","D1","SARC- Raleigh Brawl","SARC- Here for Beer",null,null,null,0,null,"D","SARC- Raleigh Brawl",0,3,null,29,3]
[30,null,"court 6","D1","SARC- Good Bumps, Nice Sets","SARC- Mizfits",null,null,null,0,null,"D","SARC- Mizfits",0,3,null,30,3]
[31,"08:30:00","court 1","C1","SARC- Notorious D.I.G.","SARC- I'd Hit That",null,null,null,0,null,"D","CSTC- Volley Llamas",0,3,null,31,3]
[32,null,"court 2","C1","SARC- Dirt Devils","SARC- Unprotected Sets",null,null,null,0,null,"D","SARC- Here for Beer",0,3,null,32,3]
[33,null,"court 3","C2","HG- Swingrays","GS- El Toro's Revenge",null,null,null,0]
[34,null,"court 4","C2","SARC- Sets on the Beach","LKP- Casual Sets",null,null,null,0]
[35,null,"court 5","B1","SO- Team Kona","CSTC- Spikological Warfare",null,null,null,0]
[36,null,"court 6","B1","SARC- Sand Diggers","NR- Hit That Thang",null,null,null,0]
[37,"09:00:00","court 1","A2","LKP- Pass It Around","NR- Six Pack Attack",null,null,null,0]
[38,null,"court 2","A2","LKP- Will Play for Sets","GS- Sand Gators",null,null,null,0]
[39,null,"court 3","D2","CSTC- Volley Llamas","GS- Rhymes with Stupid",null,null,null,0]
[40,null,"court 4","D2","CSTC- Sand in Strange Places","SARC- Mojo Risin ",null,null,null,0]
[41,"09:30:00","court 1","D1","SARC- Mizfits","SARC- Raleigh Brawl",null,null,null,0]
[42,null,"court 2","D1","SARC- Good Bumps, Nice Sets","SARC- Here for Beer",null,null,null,0]
[43,null,"court 3","A1","LKP- Air Vectors","SO- Kiss My Ace",null,null,null,0]
[44,null,"court 4","A1","SARC- $et for Life","SARC- Volleywood",null,null,null,0]
[45,"10:00:00","court 1","D2","SARC- Mojo Risin ","CSTC- Volley Llamas",null,null,null,0]
[46,null,"court 2","D2","CSTC- Sand in Strange Places","GS- Rhymes with Stupid",null,null,null,0]
[47,null,"court 3","A2","NR- Six Pack Attack","LKP- Will Play for Sets",null,null,null,0]
[48,null,"court 4","A2","LKP- Pass It Around","GS- Sand Gators",null,null,null,0]

{"sheet":"Night ONE-option 2","index":1,"n_rows":50,"n_cols":14,"rows_kept":50,"cut":false,"hidden":true,"merged":[]}
["Night 1","ALL at Springdale"]
["# games","time","Courts",null,null,null,null,null,null,null,"NO BREAK","30 MIN","60 MIN","90 MIN"]
[1,"06:00:00","court 1","C",9,10,null,null,null,"A",null,1,1]
[2,null,"court 2","C",11,12,null,null,null,"B",null,1,1]
[3,null,"court 3","D",13,14,null,null,null,"C",null,1,1]
[4,null,"court 4","D",15,16,null,null,null,"D",null,1,1]
[5,null,"court 5","E",17,18,null,null,null,"E",null,1,1]
[6,null,"court 6","E",19,20,null,null,null,"F",null,null,1,1]
[7,"06:30:00","court 1","A",1,2,null,null,null,"G",null,1,1]
[8,null,"court 2","A",3,4,null,null,null,"H",null,1,1]
[9,null,"court 3","G",25,26]
[10,null,"court 4","G",27,28]
[11,null,"court 5","F",21,22]
[12,null,"court 6","F",21,23]
[13,"07:00:00","court 1","B",5,6]
[14,null,"court 2","B",7,8]
[15,null,"court 3","C",9,11]
[16,null,"court 4","C",10,12]
[17,null,"court 5","D",13,15]
[18,null,"court 6","D",14,16]
[19,"07:30:00","court 1","A",2,4]
[20,null,"court 2","A",1,3]
[21,null,"court 3","E",17,19]
[22,null,"court 4","E",18,20]
[23,null,"court 5","H",29,30]
[24,null,"court 6","H",31,32]
[25,"08:00:00","court 1","B",6,8]
[26,null,"court 2","B",5,7]
[27,null,"court 3","F",24,21]
[28,null,"court 4","F",23,24]
[29,null,"court 5","G",25,27]
[30,null,"court 6","G",26,28]
[31,"08:30:00","court 1","E",20,17]
[32,null,"court 2","E",18,19]
[33,null,"court 3","D",16,13]
[34,null,"court 4","D",14,15]
[35,null,"court 5","C",12,9]
[36,null,"court 6","C",10,11]
[37,"09:00:00","court 1","A",4,1]
[38,null,"court 2","A",2,3]
[39,null,"court 3","H",29,31]
[40,null,"court 4","H",30,32]
[41,"09:30:00","court 1","B",8,5]
[42,null,"court 2","B",6,7]
[43,null,"court 3","G",28,25]
[44,null,"court 4","G",26,27]
[45,"10:00:00","court 1","F",22,23]
[46,null,"court 2","F",22,24]
[47,null,"court 3","H",32,29]
[48,null,"court 4","H",30,31]

{"sheet":"NIGHT TWO","index":2,"n_rows":145,"n_cols":28,"rows_kept":145,"cut":false,"hidden":false,"merged":[[0,6,0,7],[19,6,19,7],[61,6,61,7]]}
["Lake Park  A1 VS A2 Brackets  (A Division)",null,null,null,null,null,"Score",null,null,null,null,null,"RESULTS- After Night Two"]
[null,null,null,"Division","HOME","AWAY","W","L","Winner","Pt Diff",null,"Division","Teams","Win","Loss",null,null,null,"Teams on Lake Park",null,"Team","No Break","30 min","60 min",null,null,"ct 1","ct 3"]
[1,"06:00:00","court 1","A","SARC- $et for Life","LKP- Pass It Around",null,null,null,{"$f":"G3-H3","v":0},null,"A","GS- Sand Gators",{"$f":"COUNTIF('Night ONE'!I$3:I$50,M3)+COUNTIF(I$3:I$145,M3)","v":0},{"$f":"7-N3","v":7},null,null,null,"SARC- $et for Life",null,1,null,3,null,null,1,2,2]
[2,null,"court 2","A","SO- Kiss My Ace","LKP- Will Play for Sets",null,null,null,{"$f":"G4-H4","v":0},null,"A","LKP- Will Play for Sets",{"$f":"COUNTIF('Night ONE'!I$3:I$50,M4)+COUNTIF(I$3:I$145,M4)","v":0},7,null,null,null,"SO- Kiss My Ace",null,2,null,3,null,null,2,2,2]
[3,"06:30:00","court 1","A","LKP- Air Vectors","NR- Six Pack Attack",null,null,null,0,null,"A","LKP- Air Vectors",{"$f":"COUNTIF('Night ONE'!I$3:I$50,M5)+COUNTIF(I$3:I$145,M5)","v":0},7,null,null,null,"LKP- Air Vectors",null,3,null,3,null,null,3,2,2]
[4,null,"court 2","A","SARC- Volleywood","GS- Sand Gators",null,null,null,0,null,"A","LKP- Pass It Around",{"$f":"COUNTIF('Night ONE'!I$3:I$50,M6)+COUNTIF(I$3:I$145,M6)","v":0},7,null,null,null,"SARC- Volleywood",null,4,null,3,null,null,4,2,2]
[5,"07:00:00","court 1","A","SARC- $et for Life","LKP- Will Play for Sets",null,null,null,0,null,"A","SO- Kiss My Ace",{"$f":"COUNTIF('Night ONE'!I$3:I$50,M7)+COUNTIF(I$3:I$145,M7)","v":0},7,null,null,null,"LKP- Pass It Around",null,5,null,2,1,null,5,2,2]
[6,null,"court 2","A","SO- Kiss My Ace","LKP- Pass It Around",null,null,null,0,null,"A","SARC- $et for Life",{"$f":"COUNTIF('Night ONE'!I$3:I$50,M8)+COUNTIF(I$3:I$145,M8)","v":0},7,null,null,null,"LKP- Will Play for Sets",null,6,null,2,1,null,6,2,2]
[7,"07:30:00","court 1","A","LKP- Air Vectors","GS- Sand Gators",null,null,null,0,null,"A","NR- Six Pack Attack",{"$f":"COUNTIF('Night ONE'!I$3:I$50,M9)+COUNTIF(I$3:I$145,M9)","v":0},7,null,null,null,"NR- Six Pack Attack",null,7,1,2,null,null,7,2,2]
[8,null,"court 2","A","SARC- Volleywood","NR- Six Pack Attack",null,null,null,0,null,"A","SARC- Volleywood",{"$f":"COUNTIF('Night ONE'!I$3:I$50,M10)+COUNTIF(I$3:I$145,M10)","v":0},7,null,null,null,"GS- Sand Gators",null,8,1,2,null,null,8,2,2]
[9,"08:00:00","court 1","A","GS- Sand Gators","SO- Kiss My Ace",null,null,null,0,null,"B","CSTC- Spikological Warfare",{"$f":"COUNTIF('Night ONE'!I$3:I$50,M11)+COUNTIF(I$3:I$145,M11)","v":0},7,null,null,null,null,null,null,null,null,null,null,null,{"$f":"SUM(AA3:AA10)","v":16},{"$f":"SUM(AB3:AB10)","v":16}]
[10,null,"court 2","A","NR- Six Pack Attack","SARC- $et for Life",null,null,null,0,null,"B","LKP- Block You Like a Hurricane",{"$f":"COUNTIF('Night ONE'!I$3:I$50,M12)+COUNTIF(I$3:I$145,M12)","v":0},7]
[11,"08:30:00","court 1","A","LKP- Will Play for Sets","SARC- Volleywood",null,null,null,0,null,"B","GS- Vicious & Delicious",{"$f":"COUNTIF('Night ONE'!I$3:I$50,M13)+COUNTIF(I$3:I$145,M13)","v":0},7]
[12,null,"court 2","A","LKP- Pass It Around","LKP- Air Vectors",null,null,null,0,null,"B","NR- Hit That Thang",{"$f":"COUNTIF('Night ONE'!I$3:I$50,M14)+COUNTIF(I$3:I$145,M14)","v":0},7]
[13,"09:00:00","court 1","A","NR- Six Pack Attack","SO- Kiss My Ace",null,null,null,0,null,"B","GS- Where's My Beaches At?",{"$f":"COUNTIF('Night ONE'!I$3:I$50,M15)+COUNTIF(I$3:I$145,M15)","v":0},7]
[14,null,"court 2","A","GS- Sand Gators","SARC- $et for Life",null,null,null,0,null,"B","LKP- Bumpn' Uglies",{"$f":"COUNTIF('Night ONE'!I$3:I$50,M16)+COUNTIF(I$3:I$145,M16)","v":0},7]
[15,"09:30:00","court 1","A","LKP- Pass It Around","SARC- Volleywood",null,null,null,0,null,"B","SARC- Sand Diggers",{"$f":"COUNTIF('Night ONE'!I$3:I$50,M17)+COUNTIF(I$3:I$145,M17)","v":0},7]
[16,null,"court 2","A","LKP- Will Play for Sets","LKP- Air Vectors",null,null,null,0,null,"B","SO- Team Kona",{"$f":"COUNTIF('Night ONE'!I$3:I$50,M18)+COUNTIF(I$3:I$145,M18)","v":0},7]
[null,null,null,null,null,null,null,null,null,null,null,"C","SARC- Dirt Devils",{"$f":"COUNTIF('Night ONE'!I$3:I$50,M19)+COUNTIF(I$3:I$145,M19)","v":0},7]
["Greystone-  B1 vs B2 Brackets  (B Division)",null,null,null,null,null,"Score",null,null,null,null,"C","SARC- I'd Hit That",{"$f":"COUNTIF('Night ONE'!I$3:I$50,M20)+COUNTIF(I$3:I$145,M20)","v":0},7]
[null,null,null,"Division","HOME","AWAY","W","L","Winner","Pt Diff",null,"C","LKP- Casual Sets",{"$f":"COUNTIF('Night ONE'!I$3:I$50,M21)+COUNTIF(I$3:I$145,M21)","v":0},7,null,null,null,"Teams at Greystone"]
[1,"06:00:00","court 1","B","SARC- Sand Diggers","LKP- Bumpn' Uglies",null,null,null,{"$f":"G22-H22","v":0},null,"C","SARC- Unprotected Sets",{"$f":"COUNTIF('Night ONE'!I$3:I$50,M22)+COUNTIF(I$3:I$145,M22)","v":0},7,null,null,null,"SARC- Sand Diggers"]
[2,null,"court 2","B","CSTC- Spikological Warfare","LKP- Block You Like a Hurricane",null,null,null,{"$f":"G23-H23","v":0},null,"C","SARC- Notorious D.I.G.",{"$f":"COUNTIF('Night ONE'!I$3:I$50,M23)+COUNTIF(I$3:I$145,M23)","v":0},7,null,null,null,"CSTC- Spikological Warfare"]
[3,"06:30:00","court 1","B","SO- Team Kona","GS- Vicious & Delicious",null,null,null,0,null,"C","SARC- Sets on the Beach",{"$f":"COUNTIF('Night ONE'!I$3:I$50,M24)+COUNTIF(I$3:I$145,M24)","v":0},7,null,null,null,"SO- Team Kona"]
[4,null,"court 2","B","NR- Hit That Thang","GS- Where's My Beaches At?",null,null,null,0,null,"C","HG- Swingrays",{"$f":"COUNTIF('Night ONE'!I$3:I$50,M25)+COUNTIF(I$3:I$145,M25)","v":0},7,null,null,null,"NR- Hit That Thang"]
[5,"07:00:00","court 1","B","SARC- Sand Diggers","LKP- Block You Like a Hurricane",null,null,null,0,null,"C","GS- El Toro's Revenge",{"$f":"COUNTIF('Night ONE'!I$3:I$50,M26)+COUNTIF(I$3:I$145,M26)","v":0},7,null,null,null,"LKP- Bumpn' Uglies"]
[6,null,"court 2","B","CSTC- Spikological Warfare","LKP- Bumpn' Uglies",null,null,null,0,null,"D","SARC- Good Bumps, Nice Sets",{"$f":"COUNTIF('Night ONE'!I$3:I$50,M27)+COUNTIF(I$3:I$145,M27)","v":0},7,null,null,null,"LKP- Block You Like a Hurricane"]
[7,"07:30:00","court 1","B","SO- Team Kona","GS- Where's My Beaches At?",null,null,null,0,null,"D","CSTC- Sand in Strange Places",{"$f":"COUNTIF('Night ONE'!I$3:I$50,M28)+COUNTIF(I$3:I$145,M28)","v":0},7,null,null,null,"GS- Vicious & Delicious"]
[8,null,"court 2","B","NR- Hit That Thang","GS- Vicious & Delicious",null,null,null,0,null,"D","GS- Rhymes with Stupid",{"$f":"COUNTIF('Night ONE'!I$3:I$50,M29)+COUNTIF(I$3:I$145,M29)","v":0},7,null,null,null,"GS- Where's My Beaches At?"]
[9,"08:00:00","court 1","B","GS- Where's My Beaches At?","CSTC- Spikological Warfare",null,null,null,0,null,"D","SARC- Mojo Risin ",{"$f":"COUNTIF('Night ONE'!I$3:I$50,M30)+COUNTIF(I$3:I$145,M30)","v":0},7]
[10,null,"court 2","B","GS- Vicious & Delicious","SARC- Sand Diggers",null,null,null,0,null,"D","SARC- Raleigh Brawl",{"$f":"COUNTIF('Night ONE'!I$3:I$50,M31)+COUNTIF(I$3:I$145,M31)","v":0},7]
[11,"08:30:00","court 1","B","LKP- Block You Like a Hurricane","NR- Hit That Thang",null,null,null,0,null,"D","SARC- Mizfits",{"$f":"COUNTIF('Night ONE'!I$3:I$50,M32)+COUNTIF(I$3:I$145,M32)","v":0},7]
[12,null,"court 2","B","LKP- Bumpn' Uglies","SO- Team Kona",null,null,null,0,null,"D","CSTC- Volley Llamas",{"$f":"COUNTIF('Night ONE'!I$3:I$50,M33)+COUNTIF(I$3:I$145,M33)","v":0},7]
[13,"09:00:00","court 1","B","GS- Vicious & Delicious","CSTC- Spikological Warfare",null,null,null,0,null,"D","SARC- Here for Beer",{"$f":"COUNTIF('Night ONE'!I$3:I$50,M34)+COUNTIF(I$3:I$145,M34)","v":0},7]
[14,null,"court 2","B","GS- Where's My Beaches At?","SARC- Sand Diggers",null,null,null,0]
[15,"09:30:00","court 1","B","LKP- Bumpn' Uglies","NR- Hit That Thang",null,null,null,0]
[16,null,"court 2","B","LKP- Block You Like a Hurricane","SO- Team Kona",null,null,null,0]
[]
["SARC Red-  B1 vs B2 Brackets  (B Division)",null,null,null,null,null,"Score"]
[null,null,null,"Division","HOME","AWAY","W","L","Winner","Pt Diff",null,null,null,null,null,null,null,null,"Teams on SARC Blue Courts"]
[null,"06:00:00","court 1","B","SARC- Unprotected Sets","SARC- Sets on the Beach",null,null,null,"N/A",null,null,null,null,null,null,null,null,"SARC- Dirt Devils"]
[null,null,"court 2","B","SARC- I'd Hit That","HG- Swingrays",null,null,null,"N/A",null,null,null,null,null,null,null,null,"SARC- I'd Hit That"]
[null,"06:30:00","court 1",null,"Sponsor #1","Sponsor #2",null,null,null,"N/A",null,null,null,null,null,null,null,null,"SARC- Notorious D.I.G."]
[null,null,"court 2","B","SARC- Notorious D.I.G.","GS- El Toro's Revenge",null,null,null,"N/A",null,null,null,null,null,null,null,null,"SARC- Unprotected Sets"]
[null,"07:00:00","court 1","B","SARC- Dirt Devils","LKP- Casual Sets",null,null,null,"N/A",null,null,null,null,null,null,null,null,"HG- Swingrays"]
[null,null,"court 2","B","GS- El Toro's Revenge","SARC- I'd Hit That",null,null,null,"N/A",null,null,null,null,null,null,null,null,"LKP- Casual Sets"]
[null,"07:30:00","court 1",null,"Sponsor #1","Sponsor #2",null,null,null,"N/A",null,null,null,null,null,null,null,null,"SARC- Sets on the Beach"]
[null,null,"court 2","B","SARC- Sets on the Beach","SARC- Dirt Devils",null,null,null,"N/A",null,null,null,null,null,null,null,null,"GS- El Toro's Revenge"]
[null,"08:00:00","court 1","B","LKP- Casual Sets","SARC- Unprotected Sets",null,null,null,"N/A"]
[null,null,"court 2","B","HG- Swingrays","SARC- Notorious D.I.G.",null,null,null,"N/A"]
[null,"08:30:00","court 3","B","SARC- Sets on the Beach","SARC- I'd Hit That",null,null,null,"N/A"]
[null,null,"court 4","B","GS- El Toro's Revenge","SARC- Dirt Devils",null,null,null,"N/A"]
[null,"09:00:00","court 3","B","HG- Swingrays","SARC- Unprotected Sets",null,null,null,"N/A"]
[null,null,"court 4","B","LKP- Casual Sets","SARC- Notorious D.I.G.",null,null,null,"N/A"]
[null,"09:30:00","court 3","B","SARC- Dirt Devils","HG- Swingrays",null,null,null,"N/A"]
[null,null,"court 4","B","SARC- I'd Hit That","LKP- Casual Sets",null,null,null,"N/A"]
[null,"10:00:00","court 3","B","SARC- Notorious D.I.G.","SARC- Sets on the Beach",null,null,null,"N/A"]
[null,null,"court 4","B","SARC- Unprotected Sets","GS- El Toro's Revenge",null,null,null,"N/A"]
[]
[]
[]
["SARC Blue-   D1 vs D2  Brackets  (D Division)",null,null,null,null,null,"Score"]
[null,null,null,"Division","HOME","AWAY","W","L","Winner","Pt Diff"]
[null,"06:00:00","court 3","D ","SARC- Mizfits","SARC- Mojo Risin ",null,null,null,"N/A"]
[null,null,"court 4","D ","SARC- Here for Beer","GS- Rhymes with Stupid",null,null,null,"N/A",null,null,null,null,null,null,null,null,"Teams at SARC"]
[null,"06:30:00","court 3","D ","SARC- Good Bumps, Nice Sets","CSTC- Sand in Strange Places",null,null,null,"N/A",null,null,null,null,null,null,null,null,"SARC- Good Bumps, Nice Sets"]
[null,null,"court 4","D ","SARC- Raleigh Brawl","CSTC- Volley Llamas",null,null,null,"N/A",null,null,null,null,null,null,null,null,"SARC- Raleigh Brawl"]
[null,"07:00:00","court 3","D ","SARC- Mizfits","GS- Rhymes with Stupid",null,null,null,"N/A",null,null,null,null,null,null,null,null,"SARC- Mizfits"]
[null,null,"court 4","D ","SARC- Here for Beer","SARC- Mojo Risin ",null,null,null,"N/A",null,null,null,null,null,null,null,null,"SARC- Here for Beer"]
[null,"07:30:00","court 3","D ","SARC- Good Bumps, Nice Sets","CSTC- Volley Llamas",null,null,null,"N/A",null,null,null,null,null,null,null,null,"CSTC- Sand in Strange Places"]
[null,null,"court 4","D ","SARC- Raleigh Brawl","CSTC- Sand in Strange Places",null,null,null,"N/A",null,null,null,null,null,null,null,null,"CSTC- Volley Llamas"]
[null,"08:00:00","court 3","D ","CSTC- Volley Llamas","SARC- Here for Beer",null,null,null,"N/A",null,null,null,null,null,null,null,null,"SARC- Mojo Risin "]
[null,null,"court 4","D ","CSTC- Sand in Strange Places","SARC- Mizfits",null,null,null,"N/A",null,null,null,null,null,null,null,null,"GS- Rhymes with Stupid"]
[null,"08:30:00","court 1",null,"Sponsor #1","Sponsor #2",null,null,null,"N/A"]
[null,null,"court 2","D ","GS- Rhymes with Stupid","SARC- Raleigh Brawl",null,null,null,"N/A"]
[null,"09:00:00","court 1","D ","SARC- Mojo Risin ","SARC- Good Bumps, Nice Sets",null,null,null,"N/A"]
[null,null,"court 2","D ","CSTC- Volley Llamas","SARC- Mizfits",null,null,null,"N/A"]
[null,"09:30:00","court 1","D ","CSTC- Sand in Strange Places","SARC- Here for Beer",null,null,null,"N/A"]
[null,null,"court 2","D ","SARC- Mojo Risin ","SARC- Raleigh Brawl",null,null,null,"N/A"]
[null,"10:00:00","court 1","D ","GS- Rhymes with Stupid","SARC- Good Bumps, Nice Sets",null,null,null,"N/A"]
[null,null,"court 2",null,null,null,null,null,null,"N/A"]
[]
[]
[]
[]
[]
[]
[]
["Subject to change due to NUMBER of Teams in Sponsor Tournament"]
["SPONSOR TOURNAMENT-  6 teams",null,null,null,null,null,null,null,null,null,"SPONSOR TOURNAMENT-  5 teams",null,null,null,null,null,null,null,null,null,"SPONSOR TOURNAMENT-  4 teams"]
["18:30:00",null,"GRASS   CT 5",null,"Sponsor #1","Sponsor #2",null,null,null,null,"18:30:00",null,"GRASS   CT 5",null,"Sponsor #1","Sponsor #2",null,null,null,null,"19:00:00",null,"GRASS   CT 5"]
[null,null,"GRASS   CT 6",null,"Sponsor #3","Sponsor #4",null,null,null,null,null,null,"GRASS   CT 6",null,"Sponsor #3","Sponsor #4",null,null,null,null,null,null,"GRASS   CT 6"]
[null,null,"court 4",null,"Sponsor #5","Sponsor #6",null,null,null,null,null,null,null,null,"Sponsor #5","(Bye)"]
[]
["19:30:00",null,"court 1",null,"Sponsor #1","Sponsor #3",null,null,null,null,"19:30:00",null,"court 1",null,"Sponsor #1","Sponsor #3",null,null,null,null,"20:00:00",null,"court 1"]
[null,null,"court 2",null,"Sponsor #5","Sponsor #2",null,null,null,null,null,null,"court 2",null,"Sponsor #5","Sponsor #2",null,null,null,null,null,null,"court 2"]
[null,null,"court 3",null,"Sponsor #4","Sponsor #6",null,null,null,null,null,null,null,null,"Sponsor #4","(Bye)"]
[]
["20:30:00",null,"court 1",null,"Sponsor #2","Sponsor #6",null,null,null,null,"20:30:00",null,"court 1",null,"Sponsor #1","Sponsor #4",null,null,null,null,"21:00:00",null,"court 1"]
[null,null,"court 2",null,"Sponsor #5","Sponsor #3",null,null,null,null,null,null,"court 2",null,"Sponsor #3","Sponsor #5",null,null,null,null,null,null,"court 2"]
[null,null,"court 3",null,"Sponsor #1","Sponsor #4",null,null,null,null,null,null,null,null,"Sponsor #2","(Bye)"]
[]
["21:30:00",null,"court 1",null,"Championship",null,null,null,null,null,"21:30:00",null,"court 1",null,"Sponsor #4","Sponsor #2"]
[null,null,null,null,null,null,null,null,null,null,null,null,"court 2",null,"Sponsor #5","(the Winner of the A and C game)"]
[]
[]
[]
["Springdale Combined Schedule (C, D, and Sponsor Divisions)",null,null,null,null,null,"Score"]
[null,null,null,"Division","HOME","AWAY","W","L","Winner","Pt Diff"]
[null,"06:00:00","court 1","C","SARC- Unprotected Sets","SARC- Sets on the Beach",null,null,null,{"$f":"G110-H110","v":0}]
[null,null,"court 2","C","SARC- I'd Hit That","HG- Swingrays",null,null,null,{"$f":"G111-H111","v":0}]
[null,null,"court 3","D ","SARC- Mizfits","SARC- Mojo Risin ",null,null,null,0]
[null,null,"court 4","D ","SARC- Here for Beer","GS- Rhymes with Stupid",null,null,null,0]
[null,"06:30:00","court 1",null,"Sponsor #1","Sponsor #2",null,null,null,0]
[null,null,"court 2","C","SARC- Notorious D.I.G.","GS- El Toro's Revenge",null,null,null,0]
[null,null,"court 3","D ","SARC- Good Bumps, Nice Sets","CSTC- Sand in Strange Places",null,null,null,0]
[null,null,"court 4","D ","SARC- Raleigh Brawl","CSTC- Volley Llamas",null,null,null,0]
[null,"07:00:00","court 1","C","SARC- Dirt Devils","LKP- Casual Sets",null,null,null,0]
[null,null,"court 2","C","GS- El Toro's Revenge","SARC- I'd Hit That",null,null,null,0]
[null,null,"court 3","D ","SARC- Mizfits","GS- Rhymes with Stupid",null,null,null,0]
[null,null,"court 4","D ","SARC- Here for Beer","SARC- Mojo Risin ",null,null,null,0]
[null,"07:30:00","court 1",null,"Sponsor #1","Sponsor #2",null,null,null,0]
[null,null,"court 2","C","SARC- Sets on the Beach","SARC- Dirt Devils",null,null,null,0]
[null,null,"court 3","D ","SARC- Good Bumps, Nice Sets","CSTC- Volley Llamas",null,null,null,0]
[null,null,"court 4","D ","SARC- Raleigh Brawl","CSTC- Sand in Strange Places",null,null,null,0]
[null,"08:00:00","court 1","C","LKP- Casual Sets","SARC- Unprotected Sets",null,null,null,0]
[null,null,"court 2","C","HG- Swingrays","SARC- Notorious D.I.G.",null,null,null,0]
[null,null,"court 3","D ","CSTC- Volley Llamas","SARC- Here for Beer",null,null,null,0]
[null,null,"court 4","D ","CSTC- Sand in Strange Places","SARC- Mizfits",null,null,null,0]
[null,"08:30:00","court 1",null,"Sponsor #1","Sponsor #2",null,null,null,0]
[null,null,"court 2","D ","GS- Rhymes with Stupid","SARC- Raleigh Brawl",null,null,null,0]
[null,null,"court 3","C","SARC- Sets on the Beach","SARC- I'd Hit That",null,null,null,0]
[null,null,"court 4","C","GS- El Toro's Revenge","SARC- Dirt Devils",null,null,null,0]
[null,"09:00:00","court 1","D ","SARC- Mojo Risin ","SARC- Good Bumps, Nice Sets",null,null,null,0]
[null,null,"court 2","D ","CSTC- Volley Llamas","SARC- Mizfits",null,null,null,0]
[null,null,"court 3","C","HG- Swingrays","SARC- Unprotected Sets",null,null,null,0]
[null,null,"court 4","C","LKP- Casual Sets","SARC- Notorious D.I.G.",null,null,null,0]
[null,"09:30:00","court 1","D ","CSTC- Sand in Strange Places","SARC- Here for Beer",null,null,null,0]
[null,null,"court 2","D ","SARC- Mojo Risin ","SARC- Raleigh Brawl",null,null,null,0]
[null,null,"court 3","C","SARC- Dirt Devils","HG- Swingrays",null,null,null,0]
[null,null,"court 4","C","SARC- I'd Hit That","LKP- Casual Sets",null,null,null,0]
[null,"10:00:00","court 1","C","SARC- Notorious D.I.G.","SARC- Sets on the Beach",null,null,null,0]
[null,null,"court 2","C","SARC- Unprotected Sets","GS- El Toro's Revenge",null,null,null,0]
[null,null,"court 3","D ","GS- Rhymes with Stupid","SARC- Good Bumps, Nice Sets",null,null,null,0]
[null,null,"court 4",null,null,null,null,null,null,0]

{"sheet":"NIGHT THREE","index":3,"n_rows":81,"n_cols":31,"rows_kept":81,"cut":false,"hidden":false,"merged":[[0,6,0,7],[21,6,21,7],[63,6,63,7],[42,6,42,7]]}
["SARC Red-   1st Vertical Bracket Cross-section of Divisions",null,null,null,null,null,"Score",null,null,null,null,null,"RESULTS- After Night Three"]
[null,null,null,null,"HOME","AWAY","W","L","Winner","Pt Diff",null,"Division","2017 Teams","Win","Loss",".","PT DIFF",null,"Teams on SARC Red Courts",null,null,null,null,"Team","No Break","30 min","60 min",null,null,"ct 1","ct 2"]
[1,"06:00:00","court 1",null,"CSTC- Spikological Warfare","SARC- I'd Hit That",null,null,null,{"$f":"G3-H3","v":0},null,"A","GS- Sand Gators",{"$f":"COUNTIF('Night ONE'!I$3:I$50,M3)+COUNTIF('NIGHT TWO'!I$3:I$149,M3)+COUNTIF(I$3:I$81,M3)","v":0},{"$f":"11-N3","v":11},null,26,null,"CSTC- Spikological Warfare",null,null,null,null,1,1,null,2,null,1,2,2]
[2,null,"court 3",null,"SARC- Good Bumps, Nice Sets","SARC- $et for Life",null,null,null,{"$f":"G4-H4","v":0},null,"A","LKP- Will Play for Sets",{"$f":"COUNTIF('Night ONE'!I$3:I$50,M4)+COUNTIF('NIGHT TWO'!I$3:I$149,M4)+COUNTIF(I$3:I$81,M4)","v":0},11,null,44,null,"SARC- Raleigh Brawl",null,null,null,null,2,1,1,1,null,2,2,2]
[3,"06:30:00","court 1",null,"SARC- Raleigh Brawl","SARC- Dirt Devils",null,null,null,0,null,"A","LKP- Air Vectors",{"$f":"COUNTIF('Night ONE'!I$3:I$50,M5)+COUNTIF('NIGHT TWO'!I$3:I$149,M5)+COUNTIF(I$3:I$81,M5)","v":0},11,null,56,null,"SARC- Sand Diggers",null,null,null,null,9,1,2,null,null,9,2,2]
[4,null,"court 3",null,"SO- Kiss My Ace","CSTC- Spikological Warfare",null,null,null,0,null,"A","LKP- Pass It Around",{"$f":"COUNTIF('Night ONE'!I$3:I$50,M6)+COUNTIF('NIGHT TWO'!I$3:I$149,M6)+COUNTIF(I$3:I$81,M6)","v":0},11,null,-68,null,"SARC- Good Bumps, Nice Sets",null,null,null,null,10,1,1,1,null,10,2,2]
[5,"07:00:00","court 1",null,"SARC- $et for Life","SARC- Sand Diggers",null,null,null,0,null,"A","SO- Kiss My Ace",{"$f":"COUNTIF('Night ONE'!I$3:I$50,M7)+COUNTIF('NIGHT TWO'!I$3:I$149,M7)+COUNTIF(I$3:I$81,M7)","v":0},11,null,-15,null,"SARC- I'd Hit That",null,null,null,null,17,1,1,1,null,17,2,2]
[6,null,"court 3",null,"SARC- I'd Hit That","SARC- Raleigh Brawl",null,null,null,0,null,"A","SARC- $et for Life",{"$f":"COUNTIF('Night ONE'!I$3:I$50,M8)+COUNTIF('NIGHT TWO'!I$3:I$149,M8)+COUNTIF(I$3:I$81,M8)","v":0},11,null,56,null,"SO- Kiss My Ace",null,null,null,null,18,null,3,null,null,18,2,2]
[7,"07:30:00","court 1",null,"SARC- Dirt Devils","SARC- Good Bumps, Nice Sets",null,null,null,0,null,"A","NR- Six Pack Attack",{"$f":"COUNTIF('Night ONE'!I$3:I$50,M9)+COUNTIF('NIGHT TWO'!I$3:I$149,M9)+COUNTIF(I$3:I$81,M9)","v":0},{"$f":"11-N9","v":11},null,-10,null,"SARC- Dirt Devils",null,null,null,null,25,1,2,null,null,25,2,2]
[8,null,"court 3",null,"SO- Kiss My Ace","SARC- I'd Hit That",null,null,null,0,null,"A","SARC- Volleywood",{"$f":"COUNTIF('Night ONE'!I$3:I$50,M10)+COUNTIF('NIGHT TWO'!I$3:I$149,M10)+COUNTIF(I$3:I$81,M10)","v":0},11,null,105,null,"SARC- $et for Life",null,null,null,null,26,null,3,null,null,26,2,2]
[9,"08:00:00","court 1",null,"CSTC- Spikological Warfare","SARC- $et for Life",null,null,null,0,null,"B","CSTC- Spikological Warfare",{"$f":"COUNTIF('Night ONE'!I$3:I$50,M11)+COUNTIF('NIGHT TWO'!I$3:I$149,M11)+COUNTIF(I$3:I$81,M11)","v":0},11,null,72,null,null,null,null,null,null,null,null,null,null,null,null,{"$f":"SUM(AD3:AD10)","v":16},{"$f":"SUM(AE3:AE10)","v":16}]
[10,null,"court 3",null,"SARC- Sand Diggers","SARC- Good Bumps, Nice Sets",null,null,null,0,null,"B","LKP- Block You Like a Hurricane",{"$f":"COUNTIF('Night ONE'!I$3:I$50,M12)+COUNTIF('NIGHT TWO'!I$3:I$149,M12)+COUNTIF(I$3:I$81,M12)","v":0},11,null,18]
[11,"08:30:00","court 1",null,"SARC- Raleigh Brawl","SO- Kiss My Ace",null,null,null,0,null,"B","GS- Vicious & Delicious",{"$f":"COUNTIF('Night ONE'!I$3:I$50,M13)+COUNTIF('NIGHT TWO'!I$3:I$149,M13)+COUNTIF(I$3:I$81,M13)","v":0},11,null,13]
[12,null,"court 3",null,"SARC- Sand Diggers","SARC- Dirt Devils",null,null,null,0,null,"B","NR- Hit That Thang",{"$f":"COUNTIF('Night ONE'!I$3:I$50,M14)+COUNTIF('NIGHT TWO'!I$3:I$149,M14)+COUNTIF(I$3:I$81,M14)","v":0},11,null,-71]
[13,"09:00:00","court 1",null,"SARC- I'd Hit That","SARC- Good Bumps, Nice Sets",null,null,null,0,null,"B","GS- Where's My Beaches At?",{"$f":"COUNTIF('Night ONE'!I$3:I$50,M15)+COUNTIF('NIGHT TWO'!I$3:I$149,M15)+COUNTIF(I$3:I$81,M15)","v":0},11,null,-56]
[14,null,"court 3",null,"SARC- $et for Life","SARC- Dirt Devils",null,null,null,0,null,"B","LKP- Bumpn' Uglies",{"$f":"COUNTIF('Night ONE'!I$3:I$50,M16)+COUNTIF('NIGHT TWO'!I$3:I$149,M16)+COUNTIF(I$3:I$81,M16)","v":0},11,null,15]
[15,"09:30:00","court 1",null,"SO- Kiss My Ace","SARC- Sand Diggers",null,null,null,0,null,"B","SARC- Sand Diggers",{"$f":"COUNTIF('Night ONE'!I$3:I$50,M17)+COUNTIF('NIGHT TWO'!I$3:I$149,M17)+COUNTIF(I$3:I$81,M17)","v":0},11,null,45]
[16,null,"court 3",null,"CSTC- Spikological Warfare","SARC- Raleigh Brawl",null,null,null,0,null,"B","SO- Team Kona",{"$f":"COUNTIF('Night ONE'!I$3:I$50,M18)+COUNTIF('NIGHT TWO'!I$3:I$149,M18)+COUNTIF(I$3:I$81,M18)","v":0},11,null,42]
[null,null,null,null,null,null,null,null,null,null,null,"C","SARC- Dirt Devils",{"$f":"COUNTIF('Night ONE'!I$3:I$50,M19)+COUNTIF('NIGHT TWO'!I$3:I$149,M19)+COUNTIF(I$3:I$81,M19)","v":0},11,null,7]
[null,null,null,null,null,null,null,null,null,null,null,"C","SARC- I'd Hit That",{"$f":"COUNTIF('Night ONE'!I$3:I$50,M20)+COUNTIF('NIGHT TWO'!I$3:I$149,M20)+COUNTIF(I$3:I$81,M20)","v":0},11,null,21]
[null,null,null,null,null,null,null,null,null,null,null,"C","LKP- Casual Sets",{"$f":"COUNTIF('Night ONE'!I$3:I$50,M21)+COUNTIF('NIGHT TWO'!I$3:I$149,M21)+COUNTIF(I$3:I$81,M21)","v":0},11,null,0]
["SARC Blue-   2nd Vertical Bracket Cross-section of Divisions",null,null,null,null,null,"Score",null,null,null,null,"C","SARC- Unprotected Sets",{"$f":"COUNTIF('Night ONE'!I$3:I$50,M22)+COUNTIF('NIGHT TWO'!I$3:I$149,M22)+COUNTIF(I$3:I$81,M22)","v":0},11,null,-84]
[null,null,null,null,"HOME","AWAY","W","L","Winner","Pt Diff",null,"C","SARC- Notorious D.I.G.",{"$f":"COUNTIF('Night ONE'!I$3:I$50,M23)+COUNTIF('NIGHT TWO'!I$3:I$149,M23)+COUNTIF(I$3:I$81,M23)","v":0},11,null,-13,null,"Teams on SARC Blue Courts"]
[1,"06:00:00","court 2",null,"NR- Hit That Thang","SARC- Unprotected Sets",null,null,null,{"$f":"G24-H24","v":0},null,"C","SARC- Sets on the Beach",{"$f":"COUNTIF('Night ONE'!I$3:I$50,M24)+COUNTIF('NIGHT TWO'!I$3:I$149,M24)+COUNTIF(I$3:I$81,M24)","v":0},11,null,-87,null,"NR- Hit That Thang"]
[2,null,"court 4",null,"SARC- Mizfits","LKP- Air Vectors",null,null,null,{"$f":"G25-H25","v":0},null,"C","HG- Swingrays",{"$f":"COUNTIF('Night ONE'!I$3:I$50,M25)+COUNTIF('NIGHT TWO'!I$3:I$149,M25)+COUNTIF(I$3:I$81,M25)","v":0},11,null,52,null,"SARC- Here for Beer"]
[3,"06:30:00","court 2",null,"SARC- Here for Beer","SARC- Notorious D.I.G.",null,null,null,0,null,"C","GS- El Toro's Revenge",{"$f":"COUNTIF('Night ONE'!I$3:I$50,M26)+COUNTIF('NIGHT TWO'!I$3:I$149,M26)+COUNTIF(I$3:I$81,M26)","v":0},11,null,33,null,"SO- Team Kona"]
[4,null,"court 4",null,"SARC- Volleywood","NR- Hit That Thang",null,null,null,0,null,"D","SARC- Good Bumps, Nice Sets",{"$f":"COUNTIF('Night ONE'!I$3:I$50,M27)+COUNTIF('NIGHT TWO'!I$3:I$149,M27)+COUNTIF(I$3:I$81,M27)","v":0},11,null,-44,null,"SARC- Mizfits"]
[5,"07:00:00","court 2",null,"LKP- Air Vectors","SO- Team Kona",null,null,null,0,null,"D","CSTC- Sand in Strange Places",{"$f":"COUNTIF('Night ONE'!I$3:I$50,M28)+COUNTIF('NIGHT TWO'!I$3:I$149,M28)+COUNTIF(I$3:I$81,M28)","v":0},11,null,-39,null,"SARC- Unprotected Sets"]
[6,null,"court 4",null,"SARC- Unprotected Sets","SARC- Here for Beer",null,null,null,0,null,"D","GS- Rhymes with Stupid",{"$f":"COUNTIF('Night ONE'!I$3:I$50,M29)+COUNTIF('NIGHT TWO'!I$3:I$149,M29)+COUNTIF(I$3:I$81,M29)","v":0},11,null,-101,null,"SARC- Volleywood"]
[7,"07:30:00","court 2",null,"SARC- Notorious D.I.G.","SARC- Mizfits",null,null,null,0,null,"D","SARC- Mojo Risin ",{"$f":"COUNTIF('Night ONE'!I$3:I$50,M30)+COUNTIF('NIGHT TWO'!I$3:I$149,M30)+COUNTIF(I$3:I$81,M30)","v":0},11,null,40,null,"SARC- Notorious D.I.G."]
[8,null,"court 4",null,"SARC- Volleywood","SARC- Unprotected Sets",null,null,null,0,null,"D","SARC- Raleigh Brawl",{"$f":"COUNTIF('Night ONE'!I$3:I$50,M31)+COUNTIF('NIGHT TWO'!I$3:I$149,M31)+COUNTIF(I$3:I$81,M31)","v":0},11,null,-110,null,"LKP- Air Vectors"]
[9,"08:00:00","court 2",null,"NR- Hit That Thang","LKP- Air Vectors",null,null,null,0,null,"D","SARC- Mizfits",{"$f":"COUNTIF('Night ONE'!I$3:I$50,M32)+COUNTIF('NIGHT TWO'!I$3:I$149,M32)+COUNTIF(I$3:I$81,M32)","v":0},11,null,21]
[10,null,"court 4",null,"SO- Team Kona","SARC- Mizfits",null,null,null,0,null,"D","CSTC- Volley Llamas",{"$f":"COUNTIF('Night ONE'!I$3:I$50,M33)+COUNTIF('NIGHT TWO'!I$3:I$149,M33)+COUNTIF(I$3:I$81,M33)","v":0},11,null,-21]
[11,"08:30:00","court 2",null,"SARC- Here for Beer","SARC- Volleywood",null,null,null,0,null,"D","SARC- Here for Beer",{"$f":"COUNTIF('Night ONE'!I$3:I$50,M34)+COUNTIF('NIGHT TWO'!I$3:I$149,M34)+COUNTIF(I$3:I$81,M34)","v":0},11,null,53]
[12,null,"court 4",null,"SO- Team Kona","SARC- Notorious D.I.G.",null,null,null,0]
[13,"09:00:00","court 2",null,"SARC- Unprotected Sets","SARC- Mizfits",null,null,null,0]
[14,null,"court 4",null,"LKP- Air Vectors","SARC- Notorious D.I.G.",null,null,null,0]
[15,"09:30:00","court 2",null,"SARC- Volleywood","SO- Team Kona",null,null,null,0]
[16,null,"court 4",null,"NR- Hit That Thang","SARC- Here for Beer",null,null,null,0]
[]
[]
[]
["LAKE PARK-   3rd Vertical Bracket Cross-section of Divisions",null,null,null,null,null,"Score"]
[null,null,null,null,"HOME","AWAY","W","L","Winner","Pt Diff"]
[1,"06:00:00","court 1",null,"LKP- Block You Like a Hurricane","LKP- Casual Sets",null,null,null,{"$f":"G45-H45","v":0},null,null,null,null,null,null,null,null,"Teams at Lake Park"]
[2,null,"court 2",null,"CSTC- Sand in Strange Places","LKP- Pass It Around",null,null,null,{"$f":"G46-H46","v":0},null,null,null,null,null,null,null,null,"LKP- Block You Like a Hurricane"]
[3,"06:30:00","court 1",null,"CSTC- Volley Llamas","HG- Swingrays",null,null,null,0,null,null,null,null,null,null,null,null,"CSTC- Volley Llamas"]
[4,null,"court 2",null,"LKP- Will Play for Sets","LKP- Block You Like a Hurricane",null,null,null,0,null,null,null,null,null,null,null,null,"LKP- Bumpn' Uglies"]
[5,"07:00:00","court 1",null,"LKP- Pass It Around","LKP- Bumpn' Uglies",null,null,null,0,null,null,null,null,null,null,null,null,"CSTC- Sand in Strange Places"]
[6,null,"court 2",null,"LKP- Casual Sets","CSTC- Volley Llamas",null,null,null,0,null,null,null,null,null,null,null,null,"LKP- Casual Sets"]
[7,"07:30:00","court 1",null,"HG- Swingrays","CSTC- Sand in Strange Places",null,null,null,0,null,null,null,null,null,null,null,null,"LKP- Will Play for Sets"]
[8,null,"court 2",null,"LKP- Will Play for Sets","LKP- Casual Sets",null,null,null,0,null,null,null,null,null,null,null,null,"HG- Swingrays"]
[9,"08:00:00","court 1",null,"LKP- Block You Like a Hurricane","LKP- Pass It Around",null,null,null,0,null,null,null,null,null,null,null,null,"LKP- Pass It Around"]
[10,null,"court 2",null,"LKP- Bumpn' Uglies","CSTC- Sand in Strange Places",null,null,null,0]
[11,"08:30:00","court 1",null,"CSTC- Volley Llamas","LKP- Will Play for Sets",null,null,null,0]
[12,null,"court 2",null,"LKP- Bumpn' Uglies","HG- Swingrays",null,null,null,0]
[13,"09:00:00","court 1",null,"LKP- Casual Sets","CSTC- Sand in Strange Places",null,null,null,0]
[14,null,"court 2",null,"LKP- Pass It Around","HG- Swingrays",null,null,null,0]
[15,"09:30:00","court 1",null,"LKP- Will Play for Sets","LKP- Bumpn' Uglies",null,null,null,0]
[16,null,"court 2",null,"LKP- Block You Like a Hurricane","CSTC- Volley Llamas",null,null,null,0]
[]
[]
[]
["GREYSTONE-   4th Vertical Bracket Cross-section of Divisions",null,null,null,null,null,"Score"]
[null,null,null,null,"HOME","AWAY","W","L","Winner","Pt Diff",null,null,null,null,null,null,null,null,"Teams at Greystone"]
[1,"06:00:00","court 1",null,"GS- Where's My Beaches At?","GS- El Toro's Revenge",null,null,null,{"$f":"G66-H66","v":0},null,null,null,null,null,null,null,null,"GS- Where's My Beaches At?"]
[2,null,"court 2",null,"SARC- Mojo Risin ","NR- Six Pack Attack",null,null,null,{"$f":"G67-H67","v":0},null,null,null,null,null,null,null,null,"GS- Rhymes with Stupid"]
[3,"06:30:00","court 1",null,"GS- Rhymes with Stupid","SARC- Sets on the Beach",null,null,null,0,null,null,null,null,null,null,null,null,"GS- Vicious & Delicious"]
[4,null,"court 2",null,"GS- Sand Gators","GS- Where's My Beaches At?",null,null,null,0,null,null,null,null,null,null,null,null,"SARC- Mojo Risin "]
[5,"07:00:00","court 1",null,"NR- Six Pack Attack","GS- Vicious & Delicious",null,null,null,0,null,null,null,null,null,null,null,null,"GS- El Toro's Revenge"]
[6,null,"court 2",null,"GS- El Toro's Revenge","GS- Rhymes with Stupid",null,null,null,0,null,null,null,null,null,null,null,null,"GS- Sand Gators"]
[7,"07:30:00","court 1",null,"SARC- Sets on the Beach","SARC- Mojo Risin ",null,null,null,0,null,null,null,null,null,null,null,null,"SARC- Sets on the Beach"]
[8,null,"court 2",null,"GS- Sand Gators","GS- El Toro's Revenge",null,null,null,0,null,null,null,null,null,null,null,null,"NR- Six Pack Attack"]
[9,"08:00:00","court 1",null,"GS- Where's My Beaches At?","NR- Six Pack Attack",null,null,null,0]
[10,null,"court 2",null,"GS- Vicious & Delicious","SARC- Mojo Risin ",null,null,null,0]
[11,"08:30:00","court 1",null,"GS- Rhymes with Stupid","GS- Sand Gators",null,null,null,0]
[12,null,"court 2",null,"GS- Vicious & Delicious","SARC- Sets on the Beach",null,null,null,0]
[13,"09:00:00","court 1",null,"GS- El Toro's Revenge","SARC- Mojo Risin ",null,null,null,0]
[14,null,"court 2",null,"NR- Six Pack Attack","SARC- Sets on the Beach",null,null,null,0]
[15,"09:30:00","court 1",null,"GS- Sand Gators","GS- Vicious & Delicious",null,null,null,0]
[16,null,"court 2",null,"GS- Where's My Beaches At?","GS- Rhymes with Stupid",null,null,null,0]

{"sheet":"Championship Night","index":4,"n_rows":69,"n_cols":19,"rows_kept":69,"cut":false,"hidden":false,"merged":[[4,15,7,15]]}
[null,"Growler Championship Night- 32 Team Single Elimination",null,null,null,null,null,null,null,"Final Seeding ",null,null,null,null,null,"Raffle","Final 4",null,"Championship"]
[]
[]
[null,"17:30:00",null,"18:00:00",null,"18:30:00",null,"19:00:00",null,"19:30:00",null,"20:00:00",null,"20:30:00",null,"21:00:00","21:30:00",null,"22:00:00"]
[null,null,null,null,null,null,null,null,null,null,null,null,null,null,null,"Break for Announce-ments and Raffle"]
[null,null,null,null,1]
[null,null,null,null,null,1]
[null,null,null,null,32]
[null,null,null,null,null,"court 1",null,null,null,17]
[16]
[null,2]
[17,null,null,null,null,null,null,null,null,"court 1"]
[null,"court 4",null,null,null,null,null,null,null,null,null,null,null,25]
[null,null,null,null,null,null,8]
[null,null,null,null,null,null,null,3]
[null,null,null,null,null,null,25]
[null,null,null,null,null,null,null,"court 4",null,null,null,18]
[null,null,9,null,null,null,null,null,null,null,null,null,null,"court 1"]
[null,null,null,4]
[null,null,24,null,null,null,null,null,null,null,null,"court 4"]
[null,null,null,"court 1",null,null,null,null,null,null,null,null,null,null,null,null,29]
[null,null,null,null,4]
[null,null,null,null,null,5]
[null,null,null,null,29]
[null,null,null,null,null,"court 4",null,null,null,19]
[13]
[null,6]
[20,null,null,null,null,null,null,null,null,"court 4"]
[null,"court 1",null,null,null,null,null,null,null,null,null,null,null,26]
[null,null,null,null,null,null,5,null,null,null,null,null,null,null,null,null,"court 1"]
[null,null,null,null,null,null,null,7]
[null,null,null,null,null,null,28]
[null,null,null,null,null,null,null,"court 1",null,null,null,20]
[null,null,12,null,null,null,null,null,null,null,null,null,null,"court 4"]
[null,null,null,8]
[null,null,21,null,null,null,null,null,null,null,null,"court 1"]
[null,null,null,"court 4"]
[null,null,null,null,2,null,null,null,null,null,null,null,null,null,null,null,null,null,31]
[null,null,null,null,null,9]
[null,null,null,null,31]
[null,null,null,null,null,"court 2",null,null,null,21]
[15]
[null,10]
[18,null,null,null,null,null,null,null,null,"court 2"]
[null,"court 3",null,null,null,null,null,null,null,null,null,null,null,27]
[null,null,null,null,null,null,7]
[null,null,null,null,null,null,null,11]
[null,null,null,null,null,null,26]
[null,null,null,null,null,null,null,"court 3",null,null,null,22]
[null,null,10,null,null,null,null,null,null,null,null,null,null,"court 2"]
[null,null,null,12]
[null,null,23,null,null,null,null,null,null,null,null,"court 3"]
[null,null,null,"court 2",null,null,null,null,null,null,null,null,null,null,null,null,30]
[null,null,null,null,3]
[null,null,null,null,null,13,null,null,null,null,null,null,null,null,null,null,null,null,"court 1"]
[null,null,null,null,30]
[null,null,null,null,null,"court 3",null,null,null,23]
[14]
[null,14]
[19,null,null,null,null,null,null,null,null,"court 3"]
[null,"court 2",null,null,null,null,null,null,null,null,null,null,null,28]
[null,null,null,null,null,null,6,null,null,null,null,null,null,null,null,null,"court 2"]
[null,null,null,null,null,null,null,15]
[null,null,null,null,null,null,27]
[null,null,null,null,null,null,null,"court 2",null,null,null,24]
[null,null,11,null,null,null,null,null,null,null,null,null,null,"court 3"]
[null,null,null,16]
[null,null,22,null,null,null,null,null,null,null,null,"court 2"]
[null,null,null,"court 3"]

{"sheet":"GPI Ranking-Seeding","index":5,"n_rows":36,"n_cols":24,"rows_kept":36,"cut":false,"hidden":true,"merged":[[0,4,0,6],[0,2,0,3],[0,7,0,9],[0,10,0,11],[1,7,1,8]]}
[2017,"Final SEEDING ","#1- Strength of Schedule",null,"#2- NUMBER OF WINS",null,null,"#3- POINT DIFFERENTIAL",null,null,"#4- MONEY FOR ST BALDRICKS",null,null,null,null,null,"Point Differential"]
[{"$f":"'Team SB Donations'!#REF!","v":{"$error":"#REF!"}},"Method for Determining Points >>>>>>>>>>>>>>>","Points","A= 8 pts,      B=5 pts,       C= 2 pts,      D= 0 pts",null,"Points","= # of Wins","Ranking",null,"=(32-Rank)/7","Ranking","=(32-Rank)/5","Total Pts from Wins, Pt Diff, Tier Diff, Money raised",null,null,null,null,"Division","Teams","Win","Loss",".","PT DIFF","Rank"]
[null,"Point Variance",null,8,null,null,11,null,null,4.4000000000000004,null,6,null,null,null,null,null,null,"LKP- Air Vectors",null,null,null,{"$f":"VLOOKUP(S3,'NIGHT THREE'!M$3:Q$34,5,FALSE)","v":56},1]
["Ranking","Teams","Team Level","Points for Division Difficulty","Win","Loss","Points from W/L","POINT DIFFERENTIAL","Pt Diff Rank","Points from Pt Diff ","Rank- Money Raised for St Baldricks or Sponsorship","POINTS for Money Raised for St Baldricks or Sponsorship","TOTAL POINTS",null,null,null,null,null,"SARC- $et for Life",null,null,null,{"$f":"VLOOKUP(S4,'NIGHT THREE'!M$3:Q$34,5,FALSE)","v":56},2]
[1,"LKP- Air Vectors","A",{"$f":"IF(C5=\"A\",8,IF(C5=\"B\",5,IF(C5=\"C\",2,0)))","v":8},{"$f":"VLOOKUP(B5,'NIGHT THREE'!M$3:N$34,2,FALSE)","v":0},{"$f":"VLOOKUP(B5,'NIGHT THREE'!M$3:O$34,3,FALSE)","v":11},{"$f":"E5","v":0},{"$f":"VLOOKUP(B5,'NIGHT THREE'!M$3:Q$34,5,FALSE)","v":56},{"$f":"VLOOKUP($B5,S$3:X$34,6,FALSE)","v":1},{"$f":"(32-I5)/7","v":4.4285714285714288},{"$f":"VLOOKUP($B5,'Team SB Donations'!B$5:L$36,11,FALSE)","v":16},{"$f":"(32-K5)/5","v":3.2},{"$f":"G5+J5+D5+L5","v":15.62857142857143},null,null,null,null,null,"CSTC- Spikological Warfare",null,null,null,{"$f":"VLOOKUP(S5,'NIGHT THREE'!M$3:Q$34,5,FALSE)","v":72},3]
[2,"LKP- Pass It Around","A",8,{"$f":"VLOOKUP(B6,'NIGHT THREE'!M$3:N$34,2,FALSE)","v":0},{"$f":"VLOOKUP(B6,'NIGHT THREE'!M$3:O$34,3,FALSE)","v":11},0,{"$f":"VLOOKUP(B6,'NIGHT THREE'!M$3:Q$34,5,FALSE)","v":-68},8,3.4285714285714284,{"$f":"VLOOKUP($B6,'Team SB Donations'!B$5:L$36,11,FALSE)","v":13},3.8,15.228571428571428,null,null,null,null,null,"SARC- Volleywood",null,null,null,{"$f":"VLOOKUP(S6,'NIGHT THREE'!M$3:Q$34,5,FALSE)","v":105},4]
[3,"SARC- Volleywood","A",8,{"$f":"VLOOKUP(B7,'NIGHT THREE'!M$3:N$34,2,FALSE)","v":0},{"$f":"VLOOKUP(B7,'NIGHT THREE'!M$3:O$34,3,FALSE)","v":11},0,{"$f":"VLOOKUP(B7,'NIGHT THREE'!M$3:Q$34,5,FALSE)","v":105},4,4,{"$f":"VLOOKUP($B7,'Team SB Donations'!B$5:L$36,11,FALSE)","v":24},1.6,13.6,null,null,null,null,null,"SARC- Dirt Devils",null,null,null,{"$f":"VLOOKUP(S7,'NIGHT THREE'!M$3:Q$34,5,FALSE)","v":7},5]
[4,"GS- El Toro's Revenge","D",0,{"$f":"VLOOKUP(B8,'NIGHT THREE'!M$3:N$34,2,FALSE)","v":0},{"$f":"VLOOKUP(B8,'NIGHT THREE'!M$3:O$34,3,FALSE)","v":11},0,{"$f":"VLOOKUP(B8,'NIGHT THREE'!M$3:Q$34,5,FALSE)","v":33},10,3.1428571428571428,{"$f":"VLOOKUP($B8,'Team SB Donations'!B$5:L$36,11,FALSE)","v":1},6.2,9.3428571428571434,"El TORO #4 seed",null,null,null,null,"SO- Team Kona",null,null,null,{"$f":"VLOOKUP(S8,'NIGHT THREE'!M$3:Q$34,5,FALSE)","v":42},6]
[5,"CSTC- Spikological Warfare","A",8,{"$f":"VLOOKUP(B9,'NIGHT THREE'!M$3:N$34,2,FALSE)","v":0},{"$f":"VLOOKUP(B9,'NIGHT THREE'!M$3:O$34,3,FALSE)","v":11},0,{"$f":"VLOOKUP(B9,'NIGHT THREE'!M$3:Q$34,5,FALSE)","v":72},3,4.1428571428571432,{"$f":"VLOOKUP($B9,'Team SB Donations'!B$5:L$36,11,FALSE)","v":15},3.4,15.542857142857143,null,null,null,null,null,"LKP- Block You Like a Hurricane",null,null,null,{"$f":"VLOOKUP(S9,'NIGHT THREE'!M$3:Q$34,5,FALSE)","v":18},7]
[6,"GS- Sand Gators","B",5,{"$f":"VLOOKUP(B10,'NIGHT THREE'!M$3:N$34,2,FALSE)","v":0},{"$f":"VLOOKUP(B10,'NIGHT THREE'!M$3:O$34,3,FALSE)","v":11},0,{"$f":"VLOOKUP(B10,'NIGHT THREE'!M$3:Q$34,5,FALSE)","v":26},9,3.2857142857142856,{"$f":"VLOOKUP($B10,'Team SB Donations'!B$5:L$36,11,FALSE)","v":6},5.2,13.485714285714284,null,null,null,null,null,"LKP- Pass It Around",null,null,null,{"$f":"VLOOKUP(S10,'NIGHT THREE'!M$3:Q$34,5,FALSE)","v":-68},8]
[7,"SO- Kiss My Ace","A",8,{"$f":"VLOOKUP(B11,'NIGHT THREE'!M$3:N$34,2,FALSE)","v":0},{"$f":"VLOOKUP(B11,'NIGHT THREE'!M$3:O$34,3,FALSE)","v":11},0,{"$f":"VLOOKUP(B11,'NIGHT THREE'!M$3:Q$34,5,FALSE)","v":-15},20,1.7142857142857142,{"$f":"VLOOKUP($B11,'Team SB Donations'!B$5:L$36,11,FALSE)","v":4},5.6,15.314285714285713,null,null,null,null,null,"GS- Sand Gators",null,null,null,{"$f":"VLOOKUP(S11,'NIGHT THREE'!M$3:Q$34,5,FALSE)","v":26},9]
[8,"GS- Vicious & Delicious","B",5,{"$f":"VLOOKUP(B12,'NIGHT THREE'!M$3:N$34,2,FALSE)","v":0},{"$f":"VLOOKUP(B12,'NIGHT THREE'!M$3:O$34,3,FALSE)","v":11},0,{"$f":"VLOOKUP(B12,'NIGHT THREE'!M$3:Q$34,5,FALSE)","v":13},16,2.2857142857142856,{"$f":"VLOOKUP($B12,'Team SB Donations'!B$5:L$36,11,FALSE)","v":3},5.8,13.085714285714285,null,null,null,null,null,"GS- El Toro's Revenge",null,null,null,{"$f":"VLOOKUP(S12,'NIGHT THREE'!M$3:Q$34,5,FALSE)","v":33},10]
[9,"SARC- $et for Life","B",5,{"$f":"VLOOKUP(B13,'NIGHT THREE'!M$3:N$34,2,FALSE)","v":0},{"$f":"VLOOKUP(B13,'NIGHT THREE'!M$3:O$34,3,FALSE)","v":11},0,{"$f":"VLOOKUP(B13,'NIGHT THREE'!M$3:Q$34,5,FALSE)","v":56},2,4.2857142857142856,{"$f":"VLOOKUP($B13,'Team SB Donations'!B$5:L$36,11,FALSE)","v":29},0.6,9.8857142857142843,null,null,null,null,null,"SARC- Sets on the Beach",null,null,null,{"$f":"VLOOKUP(S13,'NIGHT THREE'!M$3:Q$34,5,FALSE)","v":-87},11]
[10,"LKP- Will Play for Sets","A",8,{"$f":"VLOOKUP(B14,'NIGHT THREE'!M$3:N$34,2,FALSE)","v":0},{"$f":"VLOOKUP(B14,'NIGHT THREE'!M$3:O$34,3,FALSE)","v":11},0,{"$f":"VLOOKUP(B14,'NIGHT THREE'!M$3:Q$34,5,FALSE)","v":44},12,2.8571428571428572,{"$f":"VLOOKUP($B14,'Team SB Donations'!B$5:L$36,11,FALSE)","v":27},1,11.857142857142858,null,null,null,null,null,"LKP- Will Play for Sets",null,null,null,{"$f":"VLOOKUP(S14,'NIGHT THREE'!M$3:Q$34,5,FALSE)","v":44},12]
[11,"SARC- Sand Diggers","B",5,{"$f":"VLOOKUP(B15,'NIGHT THREE'!M$3:N$34,2,FALSE)","v":0},{"$f":"VLOOKUP(B15,'NIGHT THREE'!M$3:O$34,3,FALSE)","v":11},0,{"$f":"VLOOKUP(B15,'NIGHT THREE'!M$3:Q$34,5,FALSE)","v":45},15,2.4285714285714284,{"$f":"VLOOKUP($B15,'Team SB Donations'!B$5:L$36,11,FALSE)","v":2},6,13.428571428571429,null,null,null,null,null,"LKP- Casual Sets",null,null,null,{"$f":"VLOOKUP(S15,'NIGHT THREE'!M$3:Q$34,5,FALSE)","v":0},13]
[12,"LKP- Block You Like a Hurricane","B",5,{"$f":"VLOOKUP(B16,'NIGHT THREE'!M$3:N$34,2,FALSE)","v":0},{"$f":"VLOOKUP(B16,'NIGHT THREE'!M$3:O$34,3,FALSE)","v":11},0,{"$f":"VLOOKUP(B16,'NIGHT THREE'!M$3:Q$34,5,FALSE)","v":18},7,3.5714285714285716,{"$f":"VLOOKUP($B16,'Team SB Donations'!B$5:L$36,11,FALSE)","v":26},1.2,9.7714285714285705,null,null,null,null,null,"SARC- Here for Beer",null,null,null,{"$f":"VLOOKUP(S16,'NIGHT THREE'!M$3:Q$34,5,FALSE)","v":53},14]
[13,"SO- Team Kona","C",2,{"$f":"VLOOKUP(B17,'NIGHT THREE'!M$3:N$34,2,FALSE)","v":0},{"$f":"VLOOKUP(B17,'NIGHT THREE'!M$3:O$34,3,FALSE)","v":11},0,{"$f":"VLOOKUP(B17,'NIGHT THREE'!M$3:Q$34,5,FALSE)","v":42},6,3.7142857142857144,{"$f":"VLOOKUP($B17,'Team SB Donations'!B$5:L$36,11,FALSE)","v":9},4.5999999999999996,10.314285714285713,null,null,null,null,null,"SARC- Sand Diggers",null,null,null,{"$f":"VLOOKUP(S17,'NIGHT THREE'!M$3:Q$34,5,FALSE)","v":45},15]
[14,"NR- Six Pack Attack","A",8,{"$f":"VLOOKUP(B18,'NIGHT THREE'!M$3:N$34,2,FALSE)","v":0},{"$f":"VLOOKUP(B18,'NIGHT THREE'!M$3:O$34,3,FALSE)","v":11},0,{"$f":"VLOOKUP(B18,'NIGHT THREE'!M$3:Q$34,5,FALSE)","v":-10},22,1.4285714285714286,{"$f":"VLOOKUP($B18,'Team SB Donations'!B$5:L$36,11,FALSE)","v":21},2.2000000000000002,11.62857142857143,null,null,null,null,null,"GS- Vicious & Delicious",null,null,null,{"$f":"VLOOKUP(S18,'NIGHT THREE'!M$3:Q$34,5,FALSE)","v":13},16]
[15,"SARC- Sets on the Beach","C",2,{"$f":"VLOOKUP(B19,'NIGHT THREE'!M$3:N$34,2,FALSE)","v":0},{"$f":"VLOOKUP(B19,'NIGHT THREE'!M$3:O$34,3,FALSE)","v":11},0,{"$f":"VLOOKUP(B19,'NIGHT THREE'!M$3:Q$34,5,FALSE)","v":-87},11,3,{"$f":"VLOOKUP($B19,'Team SB Donations'!B$5:L$36,11,FALSE)","v":12},4,9,null,null,null,null,null,"LKP- Bumpn' Uglies",null,null,null,{"$f":"VLOOKUP(S19,'NIGHT THREE'!M$3:Q$34,5,FALSE)","v":15},17]
[16,"LKP- Casual Sets","C",2,{"$f":"VLOOKUP(B20,'NIGHT THREE'!M$3:N$34,2,FALSE)","v":0},{"$f":"VLOOKUP(B20,'NIGHT THREE'!M$3:O$34,3,FALSE)","v":11},0,{"$f":"VLOOKUP(B20,'NIGHT THREE'!M$3:Q$34,5,FALSE)","v":0},13,2.7142857142857144,{"$f":"VLOOKUP($B20,'Team SB Donations'!B$5:L$36,11,FALSE)","v":17},3,7.7142857142857144,null,null,null,null,null,"SARC- I'd Hit That",null,null,null,{"$f":"VLOOKUP(S20,'NIGHT THREE'!M$3:Q$34,5,FALSE)","v":21},18]
[17,"SARC- Here for Beer","D",0,{"$f":"VLOOKUP(B21,'NIGHT THREE'!M$3:N$34,2,FALSE)","v":0},{"$f":"VLOOKUP(B21,'NIGHT THREE'!M$3:O$34,3,FALSE)","v":11},0,{"$f":"VLOOKUP(B21,'NIGHT THREE'!M$3:Q$34,5,FALSE)","v":53},14,2.5714285714285716,{"$f":"VLOOKUP($B21,'Team SB Donations'!B$5:L$36,11,FALSE)","v":7},5,7.5714285714285712,null,null,null,null,null,"GS- Where's My Beaches At?",null,null,null,{"$f":"VLOOKUP(S21,'NIGHT THREE'!M$3:Q$34,5,FALSE)","v":-56},19]
[18,"GS- Where's My Beaches At?","C",2,{"$f":"VLOOKUP(B22,'NIGHT THREE'!M$3:N$34,2,FALSE)","v":0},{"$f":"VLOOKUP(B22,'NIGHT THREE'!M$3:O$34,3,FALSE)","v":11},0,{"$f":"VLOOKUP(B22,'NIGHT THREE'!M$3:Q$34,5,FALSE)","v":-56},19,1.8571428571428572,{"$f":"VLOOKUP($B22,'Team SB Donations'!B$5:L$36,11,FALSE)","v":19},2.6,6.4571428571428573,null,null,null,null,null,"SO- Kiss My Ace",null,null,null,{"$f":"VLOOKUP(S22,'NIGHT THREE'!M$3:Q$34,5,FALSE)","v":-15},20]
[19,"LKP- Bumpn' Uglies","B",5,{"$f":"VLOOKUP(B23,'NIGHT THREE'!M$3:N$34,2,FALSE)","v":0},{"$f":"VLOOKUP(B23,'NIGHT THREE'!M$3:O$34,3,FALSE)","v":11},0,{"$f":"VLOOKUP(B23,'NIGHT THREE'!M$3:Q$34,5,FALSE)","v":15},17,2.1428571428571428,{"$f":"VLOOKUP($B23,'Team SB Donations'!B$5:L$36,11,FALSE)","v":31},0.2,7.3428571428571425,null,null,null,null,null,"HG- Swingrays",null,null,null,{"$f":"VLOOKUP(S23,'NIGHT THREE'!M$3:Q$34,5,FALSE)","v":52},21]
[20,"NR- Hit That Thang","A",8,{"$f":"VLOOKUP(B24,'NIGHT THREE'!M$3:N$34,2,FALSE)","v":0},{"$f":"VLOOKUP(B24,'NIGHT THREE'!M$3:O$34,3,FALSE)","v":11},0,{"$f":"VLOOKUP(B24,'NIGHT THREE'!M$3:Q$34,5,FALSE)","v":-71},27,0.7142857142857143,{"$f":"VLOOKUP($B24,'Team SB Donations'!B$5:L$36,11,FALSE)","v":25},1.4,10.114285714285714,null,null,null,null,null,"NR- Six Pack Attack",null,null,null,{"$f":"VLOOKUP(S24,'NIGHT THREE'!M$3:Q$34,5,FALSE)","v":-10},22]
[21,"SARC- Notorious D.I.G.","B",5,{"$f":"VLOOKUP(B25,'NIGHT THREE'!M$3:N$34,2,FALSE)","v":0},{"$f":"VLOOKUP(B25,'NIGHT THREE'!M$3:O$34,3,FALSE)","v":11},0,{"$f":"VLOOKUP(B25,'NIGHT THREE'!M$3:Q$34,5,FALSE)","v":-13},26,0.8571428571428571,{"$f":"VLOOKUP($B25,'Team SB Donations'!B$5:L$36,11,FALSE)","v":11},4.2,10.057142857142857,null,null,null,null,null,"SARC- Mojo Risin ",null,null,null,{"$f":"VLOOKUP(S25,'NIGHT THREE'!M$3:Q$34,5,FALSE)","v":40},23]
[22,"SARC- Dirt Devils","D",0,{"$f":"VLOOKUP(B26,'NIGHT THREE'!M$3:N$34,2,FALSE)","v":0},{"$f":"VLOOKUP(B26,'NIGHT THREE'!M$3:O$34,3,FALSE)","v":11},0,{"$f":"VLOOKUP(B26,'NIGHT THREE'!M$3:Q$34,5,FALSE)","v":7},5,3.8571428571428572,{"$f":"VLOOKUP($B26,'Team SB Donations'!B$5:L$36,11,FALSE)","v":22},2,5.8571428571428577,null,null,null,null,null,"CSTC- Sand in Strange Places",null,null,null,{"$f":"VLOOKUP(S26,'NIGHT THREE'!M$3:Q$34,5,FALSE)","v":-39},24]
[23,"SARC- Unprotected Sets","B",5,{"$f":"VLOOKUP(B27,'NIGHT THREE'!M$3:N$34,2,FALSE)","v":0},{"$f":"VLOOKUP(B27,'NIGHT THREE'!M$3:O$34,3,FALSE)","v":11},0,{"$f":"VLOOKUP(B27,'NIGHT THREE'!M$3:Q$34,5,FALSE)","v":-84},28,0.5714285714285714,{"$f":"VLOOKUP($B27,'Team SB Donations'!B$5:L$36,11,FALSE)","v":18},2.8,8.3714285714285701,null,null,null,null,null,"SARC- Raleigh Brawl",null,null,null,{"$f":"VLOOKUP(S27,'NIGHT THREE'!M$3:Q$34,5,FALSE)","v":-110},25]
[24,"SARC- Mojo Risin ","D",0,{"$f":"VLOOKUP(B28,'NIGHT THREE'!M$3:N$34,2,FALSE)","v":0},{"$f":"VLOOKUP(B28,'NIGHT THREE'!M$3:O$34,3,FALSE)","v":11},0,{"$f":"VLOOKUP(B28,'NIGHT THREE'!M$3:Q$34,5,FALSE)","v":40},23,1.2857142857142858,{"$f":"VLOOKUP($B28,'Team SB Donations'!B$5:L$36,11,FALSE)","v":8},4.8,6.0857142857142854,null,null,null,null,null,"SARC- Notorious D.I.G.",null,null,null,{"$f":"VLOOKUP(S28,'NIGHT THREE'!M$3:Q$34,5,FALSE)","v":-13},26]
[25,"SARC- I'd Hit That","C",2,{"$f":"VLOOKUP(B29,'NIGHT THREE'!M$3:N$34,2,FALSE)","v":0},{"$f":"VLOOKUP(B29,'NIGHT THREE'!M$3:O$34,3,FALSE)","v":11},0,{"$f":"VLOOKUP(B29,'NIGHT THREE'!M$3:Q$34,5,FALSE)","v":21},18,2,{"$f":"VLOOKUP($B29,'Team SB Donations'!B$5:L$36,11,FALSE)","v":32},0,4,null,null,null,null,null,"NR- Hit That Thang",null,null,null,{"$f":"VLOOKUP(S29,'NIGHT THREE'!M$3:Q$34,5,FALSE)","v":-71},27]
[26,"HG- Swingrays","C",2,{"$f":"VLOOKUP(B30,'NIGHT THREE'!M$3:N$34,2,FALSE)","v":0},{"$f":"VLOOKUP(B30,'NIGHT THREE'!M$3:O$34,3,FALSE)","v":11},0,{"$f":"VLOOKUP(B30,'NIGHT THREE'!M$3:Q$34,5,FALSE)","v":52},21,1.5714285714285714,{"$f":"VLOOKUP($B30,'Team SB Donations'!B$5:L$36,11,FALSE)","v":28},0.8,4.371428571428571,null,null,null,null,null,"SARC- Unprotected Sets",null,null,null,{"$f":"VLOOKUP(S30,'NIGHT THREE'!M$3:Q$34,5,FALSE)","v":-84},28]
[27,"CSTC- Volley Llamas","C",2,{"$f":"VLOOKUP(B31,'NIGHT THREE'!M$3:N$34,2,FALSE)","v":0},{"$f":"VLOOKUP(B31,'NIGHT THREE'!M$3:O$34,3,FALSE)","v":11},0,{"$f":"VLOOKUP(B31,'NIGHT THREE'!M$3:Q$34,5,FALSE)","v":-21},30,0.2857142857142857,{"$f":"VLOOKUP($B31,'Team SB Donations'!B$5:L$36,11,FALSE)","v":10},4.4000000000000004,6.6857142857142859,null,null,null,null,null,"SARC- Good Bumps, Nice Sets",null,null,null,{"$f":"VLOOKUP(S31,'NIGHT THREE'!M$3:Q$34,5,FALSE)","v":-44},29]
[28,"SARC- Raleigh Brawl","D",0,{"$f":"VLOOKUP(B32,'NIGHT THREE'!M$3:N$34,2,FALSE)","v":0},{"$f":"VLOOKUP(B32,'NIGHT THREE'!M$3:O$34,3,FALSE)","v":11},0,{"$f":"VLOOKUP(B32,'NIGHT THREE'!M$3:Q$34,5,FALSE)","v":-110},25,1,{"$f":"VLOOKUP($B32,'Team SB Donations'!B$5:L$36,11,FALSE)","v":20},2.4,3.4,null,null,null,null,null,"CSTC- Volley Llamas",null,null,null,{"$f":"VLOOKUP(S32,'NIGHT THREE'!M$3:Q$34,5,FALSE)","v":-21},30]
[29,"CSTC- Sand in Strange Places","D",0,{"$f":"VLOOKUP(B33,'NIGHT THREE'!M$3:N$34,2,FALSE)","v":0},{"$f":"VLOOKUP(B33,'NIGHT THREE'!M$3:O$34,3,FALSE)","v":11},0,{"$f":"VLOOKUP(B33,'NIGHT THREE'!M$3:Q$34,5,FALSE)","v":-39},24,1.1428571428571428,{"$f":"VLOOKUP($B33,'Team SB Donations'!B$5:L$36,11,FALSE)","v":30},0.4,1.5428571428571427,null,null,null,null,null,"GS- Rhymes with Stupid",null,null,null,{"$f":"VLOOKUP(S33,'NIGHT THREE'!M$3:Q$34,5,FALSE)","v":-101},31]
[30,"SARC- Mizfits","D",0,{"$f":"VLOOKUP(B34,'NIGHT THREE'!M$3:N$34,2,FALSE)","v":0},{"$f":"VLOOKUP(B34,'NIGHT THREE'!M$3:O$34,3,FALSE)","v":11},0,{"$f":"VLOOKUP(B34,'NIGHT THREE'!M$3:Q$34,5,FALSE)","v":21},32,0,{"$f":"VLOOKUP($B34,'Team SB Donations'!B$5:L$36,11,FALSE)","v":5},5.4,5.4,null,null,null,null,null,"SARC- Mizfits",null,null,null,{"$f":"VLOOKUP(S34,'NIGHT THREE'!M$3:Q$34,5,FALSE)","v":21},32]
[31,"SARC- Good Bumps, Nice Sets","C",2,{"$f":"VLOOKUP(B35,'NIGHT THREE'!M$3:N$34,2,FALSE)","v":0},{"$f":"VLOOKUP(B35,'NIGHT THREE'!M$3:O$34,3,FALSE)","v":11},0,{"$f":"VLOOKUP(B35,'NIGHT THREE'!M$3:Q$34,5,FALSE)","v":-44},29,0.42857142857142855,{"$f":"VLOOKUP($B35,'Team SB Donations'!B$5:L$36,11,FALSE)","v":14},3.6,6.0285714285714285]
[32,"GS- Rhymes with Stupid","D",0,{"$f":"VLOOKUP(B36,'NIGHT THREE'!M$3:N$34,2,FALSE)","v":0},{"$f":"VLOOKUP(B36,'NIGHT THREE'!M$3:O$34,3,FALSE)","v":11},0,{"$f":"VLOOKUP(B36,'NIGHT THREE'!M$3:Q$34,5,FALSE)","v":-101},31,0.14285714285714285,{"$f":"VLOOKUP($B36,'Team SB Donations'!B$5:L$36,11,FALSE)","v":23},1.8,1.9428571428571428]

{"sheet":"Team SB Donations","index":6,"n_rows":73,"n_cols":28,"rows_kept":73,"cut":false,"hidden":true,"merged":[]}
[null,null,null,null,null,null,null,null,null,null,null,null,null,null,"St Baldrick's Download Team Report"]
[null,"This Ranking for Team Seed  - Snapshot on 8/19   (see below for updated Team earnings)",null,null,null,null,null,null,null,null,null,null,null,null,2018]
[null,1,2,3,4,5,6,7,8,9,10,11,null,null,"SB report downloaded 8/19 6pm"]
[null,"Schedule Name","SB- Team Name","# of Participants","Team Captain Full Name",null,null,"Amount Raised on SB Site","Sponsorships Cash earned- Adjustments","Cash Sponsors acquired (checks to SARC), other SB credits, or Adjustments ","Total- Team Earnings","Growler SB Team Rank",null,null,"Registration Date","Team Name","# of Participants","Team Captain Full Name","Team Captain Display Name","Team Fundraising Goal","Amount Raised"]
[null,"GS- El Toro's Revenge","El toro",null,"Joe  Cockerham",null,null,{"$f":"VLOOKUP(C5,P$5:U$36,6,FALSE)","v":18970.009999999998},-7762,"Apply 50 % of El Toro to V & D (Lindsay/Brooke)",{"$f":"SUM(H5:I5)","v":11208.009999999998},1,null,null,"2018-05-08","Air Vectors",4,"Lawrence R Lee","Lawrence Lee",300,925]
[null,"SARC- Sand Diggers","Sand Diggers",null,"John M Marks",null,null,6849,3350,"Alvis Dent $250 , Wells Dent $500, RabonDaily $250,  D Jacobs-lights 1600, Campbell 750",10199,2,null,null,"2018-05-10","Bump'n Uglies",1,"Kenneth  Muller","Kenneth Muller",1000,500]
[null,"GS- Vicious & Delicious","Vicious and Delicious",null,"Michael D Braga",null,null,300,8762,"Apply 50 % of El Toro to V & D (Lindsay/Brooke), SouthernResearch $1000 check sent to SB",9062,3,null,null,"2018-05-10","Hit That Thang",2,"Steve  Hamilton","Steve Hamilton",1000,735]
[null,"SO- Kiss My Ace","Kiss My Ace!",null,"Olaf  Schroeder",null,null,5805,null,null,5805,4,null,null,"2018-05-10","El toro",6,"Joe  Cockerham","Joe Cockerham",500,18970.009999999998]
[null,"SARC- Mizfits","Mizfits",null,"Jay W Cupstid",null,null,2478,2350,"BTM Landscape (350),  Alvis Dent 250, Cornerstone $1500,  SMVT 250 ",4828,5,null,null,"2018-05-10","Raleigh Brawl",1,"Rob S Caulfield","Rob Caulfield",500,0]
[null,"GS- Sand Gators","Sand Gators",null,"Jeff  Sharp",null,null,2090,1200,"NC Sp Hosp ($250), Northstate (S200), Courtyard ($250). One Off clothing ($500)",3290,6,null,null,"2018-05-11","Casual Sets",1,"Dave  Radcliffe","Dave Radcliffe",500,100]
[null,"SARC- Here for Beer","Here for Beer",null,"Bill  Green",null,null,2601,500,"250 Edge, 250 Greentech",3101,7,null,null,"2018-05-14","Team Kona",4,"J  maierhofer","Joe Maierhofer",2500,1666]
[null,"SARC- Mojo Risin ","Mojo Risin'",null,"Beth  Munoz",null,null,3091,null,null,3091,8,null,null,"2018-05-15","Sand Gators",1,"Jeffrey  Sharp","Jeffrey Sharp",1000,2090]
[null,"SO- Team Kona","Team Kona",null,"Joe  Maierhofer",null,null,1666,500,"SB check from fund raiser",2166,9,null,null,"2018-05-17","Vicious and Delicious",1,"Jeff  Owens","Jeff Owens",400,300]
[null,"CSTC- Volley Llamas","Volley Llamas",null,"Eric  Yount",null,null,2020,null,null,2020,10,null,null,"2018-05-20","Mojo Risin'",6,"Ray  Gonzalez","Ray Gonzalez",3000,3091]
[null,"SARC- Notorious D.I.G.","Notorious D.I.G.",null,"Matt  Vaughn",null,null,200,1750,"Bedlam (1500), SMVT 250",1950,11,null,null,"2018-05-21","Block You Like a Hurricane",5,"James  Perotti","James Perotti",700,850]
[null,"SARC- Sets on the Beach","Sets on the Beach",null,"Jennifer H Daft",null,null,1930,null," ",1930,12,null,null,"2018-05-21","Good Bumps, Nice Sets",2,"Haleigh  McCollum","Haleigh McCollum",1500,725]
[null,"LKP- Pass It Around","Pass it Around",null,"Gregg  Klofenstine",null,null,1795,null," ",1795,13,null,null,"2018-05-21","$et For Life",1,"Dan J Schaefer","Dan Schaefer",500,630]
[null,"SARC- Good Bumps, Nice Sets","Good Bumps, Nice Sets",null,"Haleigh  McCollum",null,null,725,1050,"Nutri Lawn ($250) , H&E Equip ($800)",1775,14,null,null,"2018-05-21","Volleywood",7,"Jason P Grieco","Jason Grieco",2000,1125]
[null,"CSTC- Spikological Warfare","Spikological Warfare",null,"Burt  Driscoll",null,null,1740,null,null,1740,15,null,null,"2018-05-22","Where's My Beaches At?",3,"Marshall A Lamb","Where's My Beaches At?",500,1370]
[null,"LKP- Air Vectors","Air vectors",null,"Lawrence R Lee",null,null,925,764.94,"Bradsher",1689.94,16,null,null,"2018-05-22","Pass It Around",4,"Gregg  Klofenstine","Gregg Klofenstine",100,1795]
[null,"LKP- Casual Sets","Casual Sets",null,"Dave  Radcliffe",null,null,100,1500,"Fidelity",1600,17,null,null,"2018-05-25","Swingrays",1,"Glenn  Lucas","Glenn Lucas",1000,1050]
[null,"SARC- Unprotected Sets","Unprotected Sets",null,"Ryan D Oxendine",null,null,0,1500,"Oxendine-Barnes attorneys",1500,18,null,null,"2018-05-27","Mizfits",3,"Jay W Cupstid","Jay Cupstid",2000,2478]
[null,"GS- Where's My Beaches At?","Where's My Beaches At?",null,"Marshall A Lamb",null,null,1370,null,null,1370,19,null,null,"2018-05-29","Here for Beer",6,"Alden P Blake","Alden Blake",1500,2601]
[null,"SARC- Raleigh Brawl","Raleigh Brawl",null,"Rob S Caulfield",null,null,0,1250,"All about Aesthetics, Wise donation",1250,20,null,null,"2018-05-29","Sets on the Beach",8,"Jennifer H Daft","Jennifer Daft",300,1930]
[null,"NR- Six Pack Attack","Six Pack Attack",null,"Robby A White",null,null,800,387.2,"Frito Lay",1187.2,21,null,null,"2018-05-29","Sand Diggers",5,"John M Marks","John Marks",5000,6849]
[null,"SARC- Dirt Devils","Dirt Devils",null,"Beth  Farrell",null,null,70,1100,"Campbell Ortho 750,  Alvis Dent 250, Trimat 100",1170,22,null,null,"2018-05-30","Dirt Devils",1,"Beth  Farrell","Beth Farrell",1500,70]
[null,"GS- Rhymes with Stupid","Rhymes With Stupid",null,"Greg  Wait",null,null,1170,null,null,1170,23,null,null,"2018-05-31","Kiss My Ace!",3,"Olaf  Schroeder","Olaf Schroeder",300,5805]
[null,"SARC- Volleywood","Volleywood",null,"Jason P Grieco",null,null,1125,null,null,1125,24,null,null,"2018-05-31","Spikological Warfare",5,"Daniel  Dulaney","Daniel Dulaney",300,1740]
[null,"NR- Hit That Thang","Hit That Thang",null,"Stephen  Hamilton",null,null,735,387.2,"Frito Lay",1122.2,25,null,null,"2018-05-31","Notorious D.I.G.",5,"Matt  Vaughn","Matt Vaughn",500,200]
[null,"LKP- Block You Like a Hurricane","Block You Like A Hurricane",null,"James  Perotti",null,null,850,250,"Stew-Absolute Clean",1100,26,null,null,"2018-05-31","Rhymes With Stupid",7,"Greg  Wait","Greg Wait",1200,1170]
[null,"LKP- Will Play for Sets","Will Play For Sets",null,"John D Allen",null,null,100,1000,"funds in route to SB via Bright funds/Cisco",1100,27,null,null,"2018-05-31","Six Pack Attack",5,"Robby A White","Robby White",800,800]
[null,"HG- Swingrays","Swingrays",null,"Glenn  Lucas",null,null,1050,null,null,1050,28,null,null,"2018-06-01","Will Play For Sets",3,"John D Allen","John Allen",500,100]
[null,"SARC- $et for Life","$et For Life",null,"Dan J Schaefer",null,null,630,250,"Lexus- 250",880,29,null,null,"2018-06-01","Concrete Feet - Crabtree Swim Club",3,"Chad W Collins","Chad Collins",1000,780]
[null,"CSTC- Sand in Strange Places","Concrete Feet - Crabtree Swim Club",null,"John J Willey",null,null,780,null,null,780,30,null,null,"2018-06-02","I'd Hit That",2,"Holly C Mabe","Holly Mabe",1000,200]
[null,"LKP- Bumpn' Uglies","Bump'n Uglies",null,"Kenneth  Muller",null,null,500,250,"PRM Filtration",750,31,null,null,"2018-06-11","Unprotected Sets",1,"Ryan D Oxendine","Ryan Oxendine",1000,0]
[null,"SARC- I'd Hit That","I'd Hit That",null,"Holly C Mabe",null,null,200,null,null,200,32,null,null,"2018-07-10","Volley Llamas",6,"Andrew J Mueller","Andrew Mueller",1000,2020]
[]
[]
[]
[null,"Team SB Standing as of 5/5/19"]
[null,"Schedule Name","SB- Team Name","# Players on team","Team Captain Full Name",null,null,"Amount Raised on SB Site","Sponsorships Cash earned- Adjustments","Cash Sponsors acquired (checks to SARC), other SB credits, or Adjustments ","Total- Team Earnings","Growler SB Team Rank","SB ave per player",null,"Registration Date","Team Name","# of Participants","Team Captain Full Name","Team Captain Display Name","Team Fundraising Goal","Amount Raised",null,null,null,"team","captain","Division","Count of players"]
[null,"GS- El Toro's Revenge","El toro",{"$f":"VLOOKUP(C42,Y$42:AB$73,4,FALSE)","v":9},"Joe  Cockerham",null,null,{"$f":"VLOOKUP(C42,P$42:U$73,6,FALSE)","v":30446.17},-7762,"Apply 50 % of El Toro to V & D (Lindsay/Brooke)",{"$f":"SUM(H42:I42)","v":22684.17},1,{"$f":"K42/D42","v":2520.4633333333331},null,"2018-05-10","El toro",6,"Joe  Cockerham","Joe Cockerham",500,30446.17,null,null,null,"Concrete Feet","Chad Collins","D",8]
[null,"SARC- Sand Diggers","Sand Diggers",{"$f":"VLOOKUP(C43,Y$42:AB$73,4,FALSE)","v":13},"John M Marks",null,null,8049,3350,"Alvis Dent $250 , Wells Dent $500, RabonDaily $250,  D Jacobs-lights 1600, Campbell 750",11399,2,876.84615384615381,null,"2018-05-29","Sand Diggers",5,"John M Marks","John Marks",5000,8049,null,null,null,"Spikological Warfare","Daniel Dulaney","A",8]
[null,"GS- Vicious & Delicious","Vicious and Delicious",7,"Michael D Braga",null,null,300,8762,"Apply 50 % of El Toro to V & D (Lindsay/Brooke), SouthernResearch $1000 check sent to SB",9062,3,1294.5714285714287,null,"2018-05-31","Kiss My Ace!",3,"Olaf  Schroeder","Olaf Schroeder",300,6215,null,null,null,"Volley Llamas","An(Drew) Mueller","C",8]
[null,"SARC- Mizfits","Mizfits",{"$f":"VLOOKUP(C45,Y$42:AB$73,4,FALSE)","v":19},"Jay W Cupstid",null,null,5531.17,2350,"BTM Landscape (350),  Alvis Dent 250, Cornerstone $1500,  SMVT 250 ",7881.17,4,414.79842105263157,null,"2018-05-27","Mizfits",3,"Jay W Cupstid","Jay Cupstid",2000,5531.17,null,null,null,"Rhymes With Stupid","Greg Wait","D",7]
[null,"SO- Kiss My Ace","Kiss My Ace!",8,"Olaf  Schroeder",null,null,6215,null,null,6215,5,776.875,null,"2018-05-20","Mojo Risin'",6,"Ray  Gonzalez","Ray Gonzalez",3000,3662,null,null,null,"Vicious & Delicious","Jeff Owens","B",7]
[null,"SARC- Mojo Risin ","Mojo Risin'",9,"Beth  Munoz",null,null,3662,null,null,3662,6,406.88888888888891,null,"2018-05-29","Here for Beer",6,"Alden P Blake","Alden Blake",1500,2611,null,null,null,"Where's My Beaches At?","Marshall Lamb","C",8]
[null,"GS- Sand Gators","Sand Gators",7,"Jeff  Sharp",null,null,2440,1200,"NC Sp Hosp ($250), Northstate (S200), Courtyard ($250). One Off clothing ($500)",3640,7,520,null,"2018-05-15","Sand Gators",1,"Jeffrey  Sharp","Jeffrey Sharp",1000,2440,null,null,null,"El Toro","Joe Cockerham","D",9]
[null,"SARC- Raleigh Brawl","Raleigh Brawl",15,"Rob S Caulfield",null,null,2000,1250,"All about Aesthetics, Wise donation",3250,8,216.66666666666666,null,"2018-05-14","Team Kona",4,"Joe  Maierhofer","Joe Maierhofer",2500,2298,null,null,null,"Sand Gators","Jeff Sharp","B",7]
[null,"SARC- Here for Beer","Here for Beer",15,"Bill  Green",null,null,2611,500,"250 Edge, 250 Greentech",3111,9,207.4,null,"2018-06-01","Concrete Feet - Crabtree Swim Club",3,"Chad W Collins","Chad Collins",1000,2213,null,null,null,"Swingrays","Glenn Lucas","C",9]
[null,"SO- Team Kona","Team Kona",12,"Joe  Maierhofer",null,null,2298,500,"SB check from fund raiser",2798,10,233.16666666666666,null,"2018-05-29","Sets on the Beach",8,"Jennifer H Daft","Jennifer Daft",300,2151,null,null,null,"Bump'n Uglies","Ken Muller","B",7]
[null,"CSTC- Sand in Strange Places","Concrete Feet - Crabtree Swim Club",8,"John J Willey",null,null,2213,null,null,2213,11,276.625,null,"2018-05-22","Pass It Around",4,"Gregg  Klofenstine","Gregg Klofenstine",100,2095,null,null,null,"Air Vectors","Lawrence Lee","A",7]
[null,"SARC- Sets on the Beach","Sets on the Beach",{"$f":"VLOOKUP(C53,Y$42:AB$73,4,FALSE)","v":9},"Jennifer H Daft",null,null,2151,null," ",2151,12,239,null,"2018-07-10","Volley Llamas",6,"Andrew J Mueller","Andrew Mueller",1000,2070,null,null,null,"Block You Like a Hurricane","Jim Perotti","B",7]
[null,"SARC- Good Bumps, Nice Sets","Good Bumps, Nice Sets",10,"Haleigh  McCollum",null,null,1100,1050,"Nutri Lawn ($250) , H&E Equip ($800)",2150,13,215,null,"2018-05-10","Raleigh Brawl",1,"Rob S Caulfield","Rob Caulfield",500,2000,null,null,null,"Casual Sets","DAVE RADCLIFFE","C",6]
[null,"LKP- Pass It Around","Pass it Around",{"$f":"VLOOKUP(C55,Y$42:AB$73,4,FALSE)","v":8},"Gregg  Klofenstine",null,null,2095,null," ",2095,14,261.875,null,"2018-05-31","Spikological Warfare",5,"Daniel  Dulaney","Daniel Dulaney",300,1740,null,null,null,"Pass it Around","Gregg Klofenstine","A",8]
[null,"CSTC- Volley Llamas","Volley Llamas",{"$f":"VLOOKUP(C56,Y$42:AB$73,4,FALSE)","v":8},"Eric  Yount",null,null,2070,null,null,2070,15,258.75,null,"2018-05-21","Volleywood",7,"Jason P Grieco","Jason Grieco",2000,1651,null,null,null,"Will Play for Sets","John Allen","A",6]
[null,"SARC- Notorious D.I.G.","Notorious D.I.G.",10,"Matt  Vaughn",null,null,200,1750,"Bedlam (1500), SMVT 250",1950,16,195,null,"2018-05-10","Hit That Thang",2,"Steve  Hamilton","Steve Hamilton",1000,1501.75,null,null,null,"Hit That Thang","Steve Hamilton","A",9]
[null,"NR- Hit That Thang","Hit That Thang",{"$f":"VLOOKUP(C58,Y$42:AB$73,4,FALSE)","v":9},"Stephen  Hamilton",null,null,1501.75,387.2,"Frito Lay",1888.95,17,209.88333333333333,null,"2018-05-22","Where's My Beaches At?",3,"Marshall A Lamb","Where's My Beaches At?",500,1470,null,null,null,"Six Pack Attack","Robby White","A",8]
[null,"LKP- Air Vectors","Air vectors",7,"Lawrence R Lee",null,null,1025,764.94,"Bradsher",1789.94,18,255.70571428571429,null,"2018-05-31","Rhymes With Stupid",7,"Greg  Wait","Greg Wait",1200,1170,null,null,null,"MOJO RISIN'","Kyle Gonzalez","D",9]
[null,"CSTC- Spikological Warfare","Spikological Warfare",8,"Burt  Driscoll",null,null,1740,null,null,1740,19,217.5,null,"2018-05-21","Good Bumps, Nice Sets",2,"Haleigh  McCollum","Haleigh McCollum",1500,1100,null,null,null,"Notorious DIG","Matt Vaughn","B",10]
[null,"SARC- Volleywood","Volleywood",7,"Jason P Grieco",null,null,1651,null,null,1651,20,235.85714285714286,null,"2018-05-25","Swingrays",1,"Glenn  Lucas","Glenn Lucas",1000,1050,null,null,null,"Dirt Devils","Beth Farrell","D",9]
[null,"LKP- Casual Sets","Casual Sets",6,"Dave  Radcliffe",null,null,100,1500,"Fidelity",1600,21,266.66666666666669,null,"2018-05-08","Air Vectors",4,"Lawrence R Lee","Lawrence Lee",300,1025,null,null,null,"Great Bumps Nice Sets","Haleigh McCollum","C",10]
[null,"SARC- Unprotected Sets","Unprotected Sets",9,"Ryan D Oxendine",null,null,0,1500,"Oxendine-Barnes attorneys",1500,22,166.66666666666666,null,"2018-06-02","I'd Hit That",2,"Holly C Mabe","Holly Mabe",1000,889.85,null,null,null,"Here for Beer","AP Blake","D",15]
[null,"GS- Where's My Beaches At?","Where's My Beaches At?",8,"Marshall A Lamb",null,null,1470,null,null,1470,23,183.75,null,"2018-05-21","Block You Like a Hurricane",5,"James  Perotti","James Perotti",700,850,null,null,null,"I'd Hit That","Holly Mabe","B",18]
[null,"SARC- Dirt Devils","Dirt Devils",9,"Beth  Farrell",null,null,120,1100,"Campbell Ortho 750,  Alvis Dent 250, Trimat 100",1220,24,135.55555555555554,null,"2018-05-31","Six Pack Attack",5,"Robby A White","Robby White",800,800,null,null,null,"Mizfits","Jay Cupstid","D",19]
[null,"NR- Six Pack Attack","Six Pack Attack",8,"Robby A White",null,null,800,387.2,"Frito Lay",1187.2,25,148.4,null,"2018-05-21","$et For Life",1,"Dan J Schaefer","Dan Schaefer",500,630,null,null,null,"Raleigh Brawl","Rob Caulfield","D",15]
[null,"GS- Rhymes with Stupid","Rhymes With Stupid",7,"Greg  Wait",null,null,1170,null,null,1170,26,167.14285714285714,null,"2018-05-10","Bump'n Uglies",1,"Kenneth  Muller","Kenneth Muller",1000,625,null,null,null,"Sand Diggers","John Marks","B",13]
[null,"LKP- Will Play for Sets","Will Play For Sets",6,"John D Allen",null,null,125,1000,"funds in route to SB via Bright funds/Cisco",1125,27,187.5,null,"2018-05-17","Vicious and Delicious",1,"Jeff  Owens","Jeff Owens",400,300,null,null,null,"Sets on the Beach","Jennifer Daft","C",9]
[null,"LKP- Block You Like a Hurricane","Block You Like A Hurricane",7,"James  Perotti",null,null,850,250,"Stew-Absolute Clean",1100,28,157.14285714285714,null,"2018-05-31","Notorious D.I.G.",5,"Matt  Vaughn","Matt Vaughn",500,200,null,null,null,"Unprotected Sets","Ryan Oxendine","B",9]
[null,"HG- Swingrays","Swingrays",9,"Glenn  Lucas",null,null,1050,null,null,1050,29,116.66666666666667,null,"2018-06-01","Will Play For Sets",3,"John D Allen","John Allen",500,125,null,null,null,"Volleywood","Jason Grieco","A",7]
[null,"SARC- I'd Hit That","I'd Hit That",18,"Holly C Mabe",null,null,889.85,null,null,889.85,30,{"$f":"K71/D71","v":49.43611111111111},null,"2018-05-30","Dirt Devils",1,"Beth  Farrell","Beth Farrell",1500,120,null,null,null,"$et For Life","Dan Schaefer","B",8]
[null,"SARC- $et for Life","$et For Life",8,"Dan J Schaefer",null,null,630,250,"Lexus- 250",880,31,{"$f":"K72/D72","v":110},null,"2018-05-11","Casual Sets",1,"Dave  Radcliffe","Dave Radcliffe",500,100,null,null,null,"Kiss My Ace!","Olaf Schroeder","A",8]
[null,"LKP- Bumpn' Uglies","Bump'n Uglies",7,"Kenneth  Muller",null,null,625,250,"PRM Filtration",875,32,{"$f":"K73/D73","v":125},null,"2018-06-11","Unprotected Sets",1,"Ryan D Oxendine","Ryan Oxendine",1000,0,null,null,null,"Team Kona","Brian Tobey","C",12]

{"sheet":"Teams","index":7,"n_rows":78,"n_cols":25,"rows_kept":78,"cut":false,"hidden":false,"merged":[]}
[]
[]
[]
[]
[]
[]
[]
[]
[]
[]
[]
[]
[]
[]
["2018 TEAMS"]
[1,2,3,4,5,6,7,8,9,10,11,12,13,14,15,16,17,18,19,20]
["# of Teams","Teams per club","Captain","Club",null,"Team","Division","Team #","Full Name",null,null,"Team #s",null,null,null,null,null,null,null,null,null,null,"2018 Division Shifts","Division","2018 Teams"]
[1,1,"Jay Cupstid","Springdale","SARC","Mizfits",null,28,{"$f":"E18& \"- \" & F18","v":"SARC- Mizfits"},null,"Bracket",null,null,null,null,"Bracket",null,null,null,null,null,"Teams",null,"A","LKP- Will Play for Sets"]
[2,2,"Jason Grieco","Springdale","SARC","Volleywood",null,3,{"$f":"E19& \"- \" & F19","v":"SARC- Volleywood"},null,"A1",1,2,3,4,"A2",5,6,7,8,null,"LKP- Will Play for Sets",null,"A","LKP- Pass It Around"]
[3,3,"Jennifer Daft","Springdale","SARC","Sets on the Beach",null,24,"SARC- Sets on the Beach",null,"C1",9,10,11,12,"B2-",13,14,15,16,null,"LKP- Pass It Around",null,"A","CSTC- Spikological Warfare"]
[4,4,"John Marks","Springdale","SARC","Sand Diggers",null,10,"SARC- Sand Diggers",null,"B1",17,18,19,20,"B2",21,22,23,24,null,"CSTC- Spikological Warfare",null,"A","NR- Hit That Thang"]
[5,5,"Shawn Mabe","Springdale","SARC","I'd Hit That",null,17,"SARC- I'd Hit That",null,"D1",25,26,27,28,"D2",29,30,31,32,null,"LKP- Bumpn' Uglies",null,"A","NR- Six Pack Attack"]
[6,6,"Rob Caulfield","Springdale","SARC","Raleigh Brawl",null,25,"SARC- Raleigh Brawl",null,null,null,null,null,null,null,null,null,null,null,null,"NR- Six Pack Attack",null,"A","SARC- Volleywood"]
[7,7,"Beth/Bruce Farell","Springdale","SARC","Dirt Devils",null,18,"SARC- Dirt Devils",2019,null,null,null,null,null,null,null,null,null,null,null,"SARC- Volleywood",null,"A","SO- Kiss My Ace"]
[8,8,"Haleigh McCollum","Springdale","SARC","Good Bumps, Nice Sets",null,26,"SARC- Good Bumps, Nice Sets",null,"Bracket",null,null,null,null,"Bracket",null,null,null,null,null,"SO- Kiss My Ace",null,"A","LKP- Air Vectors"]
[9,9,"AP Blake","Springdale","SARC","Here for Beer",null,27,"SARC- Here for Beer",null,null,"SARC - Week 3","SARC - Week 3","SARC - Week 3","SARC - Week 3",null,"LKP - Week 3","LKP - Week 3","GS - Week 3","GS - Week 3",null,"LKP- Air Vectors",null,"B","SARC- $et for Life"]
[10,10,"Ray Gonzalez","Springdale","SARC","Mojo Risin ",null,32,"SARC- Mojo Risin ","LKP - A Div teams week 2","A1","SO- Kiss My Ace","SARC- $et for Life","SARC- Volleywood","LKP- Air Vectors","A2","LKP- Will Play for Sets","LKP- Pass It Around","GS- Sand Gators","NR- Six Pack Attack","A TEAMS","SARC- $et for Life",null,"B","SARC- Sand Diggers"]
[11,11,"Matt Vaughan","Springdale","SARC","Notorious D.I.G.",null,20,"SARC- Notorious D.I.G.","GS - B Div teams week 2","B1","CSTC- Spikological Warfare","SARC- Sand Diggers","NR- Hit That Thang","SO- Team Kona","B2","LKP- Block You Like a Hurricane","LKP- Bumpn' Uglies","GS- Where's My Beaches At?","GS- Vicious & Delicious","B TEAMS","SARC- Sand Diggers",null,"B","LKP- Bumpn' Uglies"]
[12,12,"Ryan Oxendine","Springdale","SARC","Unprotected Sets",null,19,"SARC- Unprotected Sets","SARC- C Div teams week 2","C1","SARC- I'd Hit That","SARC- Dirt Devils","SARC- Unprotected Sets","SARC- Notorious D.I.G.","C2","LKP- Casual Sets","HG- Swingrays","GS- El Toro's Revenge","SARC- Sets on the Beach","C Teams","SARC- I'd Hit That",null,"B","SARC- Unprotected Sets"]
[13,13,"Dan Schaefer","Springdale","SARC","$et for Life",null,2,"SARC- $et for Life","SARC - D Div teams week 2","D1","SARC- Raleigh Brawl","SARC- Good Bumps, Nice Sets","SARC- Here for Beer","SARC- Mizfits","D2","CSTC- Volley Llamas","CSTC- Sand in Strange Places","GS- Rhymes with Stupid","SARC- Mojo Risin ","D Teams","LKP- Casual Sets",null,"B","SARC- Notorious D.I.G."]
[14,1,"Greg Klofenstine","Lakepark","LKP","Pass It Around",null,6,"LKP- Pass It Around",null,null,null,null,null,null,null,null,null,null,null,null,"SARC- Notorious D.I.G.",null,"B","GS- Vicious & Delicious"]
[15,2,"John Allen","Lakepark","LKP","Will Play for Sets",null,5,"LKP- Will Play for Sets","\"A\" Division Teams",null,null,null,null,null,null,null,null,null,null,null,"GS- Vicious & Delicious",null,"B","LKP- Block You Like a Hurricane"]
[16,3,"Ken Muller","Lakepark","LKP","Bumpn' Uglies",null,14,"LKP- Bumpn' Uglies","\"B\" Division Teams",null,null,null,null,null,null,null,null,null,null,null,"LKP- Block You Like a Hurricane",null,"B","GS- Sand Gators"]
[17,4,"Dave Radcliffe","Lakepark","LKP","Casual Sets",null,21,"LKP- Casual Sets","\"C\"  Division Teams",null,null,null,null,null,null,null,null,null,null,null,"GS- Sand Gators",null,"C","SARC- I'd Hit That"]
[18,5,"Lawerance Lee","Lakepark","LKP","Air Vectors",null,4,"LKP- Air Vectors","\"D\"  Division Teams",null,null,null,null,null,null,null,null,null,null,null,"SARC- Raleigh Brawl",null,"C","LKP- Casual Sets"]
[19,6,"Jim Perotti","Lakepark","LKP","Block You Like a Hurricane",null,13,"LKP- Block You Like a Hurricane",null,null,null,null,null,null,null,null,null,null,null,null,"NR- Hit That Thang",null,"C","GS- Where's My Beaches At?"]
[20,1,"Vinnie Smith","Seven Oaks","SO","Kiss My Ace",null,1,"SO- Kiss My Ace",null,null,null,null,null,null,null,null,null,null,null,null,"GS- Where's My Beaches At?",null,"C","SARC- Good Bumps, Nice Sets"]
[21,2,"Brian Tobey","Seven Oaks","SO","Team Kona",null,12,"SO- Team Kona","2018 Bracket Slots",null,"2018 Brackets",null,null,null,null,null,null,null,null,null,"SARC- Good Bumps, Nice Sets",null,"C","HG- Swingrays"]
[22,1,"Frank Koch","Crabtree","CSTC","Sand in Strange Places",null,30,"CSTC- Sand in Strange Places",null,"Bracket",null,null,null,null,"Bracket",null,null,null,null,null,"HG- Swingrays",null,"C","CSTC- Volley Llamas"]
[22,1,"Tucker Soltesz","Crabtree","CSTC","Spikological Warfare",null,9,{"$f":"E40& \"- \" & F40","v":"CSTC- Spikological Warfare"},null,null,"SARC - Week 3","SARC - Week 3","SARC - Week 3","SARC - Week 3",null,"LKP - Week 3","LKP - Week 3","GS - Week 3","GS - Week 3",null,"CSTC- Sand in Strange Places",null,"C","SO- Team Kona"]
[24,3,"An(Drew) Mueller","Crabtree","CSTC","Volley Llamas",null,29,{"$f":"E41& \"- \" & F41","v":"CSTC- Volley Llamas"},"LKP - A Div teams week 2","A1","NR- Six Pack Attack","SARC- Volleywood","LKP- Air Vectors","CSTC- Spikological Warfare","A2","LKP- Pass It Around","NR- Hit That Thang","LKP- Will Play for Sets","SO- Kiss My Ace","A TEAMS","SARC- Unprotected Sets",null,"C","SARC- Sets on the Beach"]
[25,1,"Marshall Lamb","Greystone","GS","Where's My Beaches At?",null,15,"GS- Where's My Beaches At?","GS- C Div teams week 2","C1","SARC- I'd Hit That","SO- Team Kona","SARC- Good Bumps, Nice Sets","SARC- Sets on the Beach","C2","LKP- Casual Sets","CSTC- Volley Llamas","HG- Swingrays","GS- Where's My Beaches At?","C Teams","GS- El Toro's Revenge",null,"D","SARC- Raleigh Brawl"]
[26,2,"Joe Cockerham","Greystone","GS","El Toro's Revenge",null,23,"GS- El Toro's Revenge","SARC - B Div teams week 2","B1","SARC- Sand Diggers","SARC- $et for Life","SARC- Unprotected Sets","SARC- Notorious D.I.G.","B2","LKP- Bumpn' Uglies","LKP- Block You Like a Hurricane","GS- Sand Gators","GS- Vicious & Delicious","B TEAMS","CSTC- Volley Llamas",null,"D","CSTC- Sand in Strange Places"]
[27,3,"Greg Wait","Greystone","GS","Rhymes with Stupid",null,31,"GS- Rhymes with Stupid","SARC - D Div teams week 2","D1","SARC- Mizfits","SARC- Raleigh Brawl","SARC- Dirt Devils","SARC- Here for Beer","D2","SARC- Mojo Risin ","CSTC- Sand in Strange Places","GS- Rhymes with Stupid","GS- El Toro's Revenge","D Teams","SO- Team Kona",null,"D","GS- Rhymes with Stupid"]
[28,4,"Jeff Owens","Greystone","GS","Vicious & Delicious",null,16,"GS- Vicious & Delicious",null,null,null,null,null,null,null,null,null,null,null,null,"GS- Rhymes with Stupid",null,"D","GS- El Toro's Revenge"]
[29,5,"Jeff Sharp","Greystone","GS","Sand Gators",null,7,"GS- Sand Gators",null,null,null,null,null,null,null,null,null,null,null,null,"SARC- Sets on the Beach",null,"D","SARC- Mizfits"]
[30,1,"Jim White","North Raleigh","NR","Six Pack Attack",null,8,"NR- Six Pack Attack",null,null,null,null,null,null,null,null,null,null,null,null,"SARC- Mizfits",null,"D","SARC- Here for Beer"]
[31,2,"Richard Adams","North Raleigh","NR","Hit That Thang",null,11,"NR- Hit That Thang",null,null,null,null,null,null,null,null,null,null,null,null,"SARC- Here for Beer",null,"D","SARC- Mojo Risin "]
[32,1,"Glen Lucas","Harrington Grove","HG","Swingrays",null,22,"HG- Swingrays",null,null,null,null,null,null,null,null,null,null,null,null,"SARC- Mojo Risin ",null,"D","SARC- Dirt Devils"]
[null,null,null,null,null,null,null,null,null,null,null,null,null,null,null,null,null,null,null,null,null,"SARC- Dirt Devils"]
[]
[null,null,null,null,null,null,null,null,null,"2017 Bracket Slots",null,"2017 Brackets"]
[null,null,null,null,null,null,null,null,null,null,"Bracket",null,null,null,null,"Bracket"]
[null,null,null,null,null,null,null,null,null,null,null,"SARC - Week 3","SARC - Week 3","SARC - Week 3","SARC - Week 3",null,"LKP - Week 3","LKP - Week 3","GS - Week 3","GS - Week 3"]
[null,null,null,null,null,null,null,null,null,"LKP - A Div teams week 2","A1","SARC- Volleywood","LKP- Bumpn' Uglies","SO- Kiss My Ace","LKP- Air Vectors","A2","LKP- Will Play for Sets","NR- Six Pack Attack","LKP- Pass It Around","CSTC- Spikological Warfare","A TEAMS"]
[null,null,null,null,null,null,null,null,null,"GS- C Div teams week 2","C1","SARC- Good Bumps, Nice Sets","SARC- Raleigh Brawl","SARC- Unprotected Sets","CSTC- Sand in Strange Places","C2","NR- Hit That Thang","HG- Swingrays","GS- Where's My Beaches At?","GS- El Toro's Revenge","C Teams"]
[null,null,null,null,null,null,null,null,null,"SARC - B Div teams week 2","B1","SARC- Notorious D.I.G.","GS- Sand Gators","SARC- Sand Diggers","SARC- I'd Hit That","B2","LKP- Casual Sets","LKP- Block You Like a Hurricane","SARC- $et for Life","GS- Vicious & Delicious","B TEAMS"]
[null,null,null,null,null,null,null,null,null,"SARC - D Div teams week 2","D1","SARC- Mizfits","SARC- Mojo Risin ","SARC- Here for Beer","SARC- Sets on the Beach","D2","SO- Team Kona","GS- Rhymes with Stupid","SARC- Dirt Devils","CSTC- Volley Llamas","D Teams"]
[]
[]
[]
[]
[null,null,null,null,null,null,null,null,null,"2016 Bracket Slots",null,"2016 Brackets"]
[null,null,null,null,null,null,null,null,null,null,"Bracket",null,null,null,null,"Bracket"]
[null,null,null,null,null,null,null,null,null,null,null,"SARC - Week 3","SARC - Week 3","SARC - Week 3","SARC - Week 3",null,"LKP - Week 3","LKP - Week 3","GS - Week 3","GS - Week 3"]
[null,null,null,null,null,null,null,null,null,"LKP - A Div teams week 2","A1","LPK-Air Vectors","SARC- $et for Life","CSTC- Spikological Warfare","SARC- Volleywood","A2","LPK- Pass it Around","LPK-WILL Play for Sets","NR- Six Pack Attack","SO- Kiss My Ace"]
[null,null,null,null,null,null,null,null,null,"GS- C Div teams week 2","C1","SARC- Good Bumps","SO- Team Kona","CSTC- Volley Llamas","CT Concrete Feet","C2","LKP- Block You Like a Hurricane","HG- Swingrays","GS- Sand Gators","GS- Setual Healing"]
[null,null,null,null,null,null,null,null,null,"SARC - B Div teams week 2","B1","SARC- Raleigh Brawl","SARC- Sand Diggers","SARC -I'd Hit That","SARC-Notorious DIG","B2","LPK-Casual Sets","LKP- Bumpn' Uglies","NR- Hit That Thang"," GS-Where's My Beaches At?"]
[null,null,null,null,null,null,null,null,null,"SARC - D Div teams week 2","D1","SARC Unprotected Sets","SARC- Mizfits","SARC- Here for Beer","SARC- Dirt Devils","D2","SARC- Sets on the Beach","SARC- Mojo Risin","GS- El Toro's Revenge","GS- Rhymes with Stupid"]
[]
[]
[]
[null,null,null,null,null,null,null,null,null,"2015 Bracket Slots"]
[null,null,null,null,null,null,null,null,null,null,null,"SARC - Week 3","SARC - Week 3","SARC - Week 3","SARC - Week 3",null,"LKP - Week 3","LKP - Week 3","GS - Week 3","GS - Week 3"]
[null,null,null,null,null,null,null,null,null,"LKP - A Div teams week 2","A1","SO- Kiss My Ace","LPK-Air Vectors","SARC- Volleywood","LPK- Pass it Around","A2","LPK-Casual Sets","NR- Six Pack Attack","LPK-WILL Play for Sets"," GS-Where's My Beaches At? A","A TEAMS"]
[null,null,null,null,null,null,null,null,null,"GS- C Div teams week 2","C1","SARC- $et for Life","SARC- Dirt Devils","SARC- Mojo Risin","SARC- Good Bumps","C2","HG- Swing Rays","LKP- Block You Like a Hurricane","GS- Dirty Sets on Tuesdays","GS- Sand Gators","C Teams"]
[null,null,null,null,null,null,null,null,null,"SARC - B Div teams week 2","B1","SARC- Raleigh Brawl","SARC-Notorious DIG","LKP- Bumpn' Uglies","SARC- Sand Diggers","B2","NR  Hit That Thang","SARC -I'd Hit That","CT Concrete Feet","GS- Rhymes w Stupid","B TEAMS"]
[null,null,null,null,null,null,null,null,null,"SARC - D Div teams week 2","D1","SARC- Mizfits","SARC- Sets on the Beach","SARC- Here for Beer","Team Sponsor","D2","SARC Unprotected Sets","SO- Team Kona","GS- El Toro's Revenge","CSTC- Dangerous When Set","D Teams"]

{"sheet":"32 team Bracketology","index":8,"n_rows":39,"n_cols":20,"rows_kept":39,"cut":false,"hidden":false,"merged":[]}
["32 TEAM BRACKETOLOGY-  The method to this schedule Madness"]
[]
["Night 1","All at SARC- Play Within Your Bracket"]
[null,"Teams play a round robin with 3 teams in their same Bracket"]
[null," 8 Brackets of 4- 3 games each  "]
["Bracket",null,null,null,null,"Bracket"]
["A1",1,2,3,4,"A2",5,6,7,8,null,"A Division "]
[]
["B1-",9,10,11,12,"C2",13,14,15,16,null,"C Division"]
[]
["B1",17,18,19,20,"B2",21,22,23,24,null,"B Division"]
[]
["D1",25,26,27,28,"D2",29,30,31,32,null,"D Division"]
[]
[]
["Night 2","Play Adjoining Bracket-  Bracket VS Bracket-  Both are in the same Division"]
[null,"each team Plays the other 4 teams in the adjoining bracket in the same Row"]
[null,"8 team brackets at 4 locations with 2 courts each"]
[null,"4 games for each team"]
[null,"Bracket",null,null,null,null,"Bracket",null,null,null,null,null,"Best 8 Teams in Row 1"]
["SARC Red","A1",1,2,3,4,"A2",5,6,7,8,null,"Bracket A1 vs A2"]
[]
["LK","B1-",9,10,11,12,"C2",13,14,15,16,null,"Bracket B1-  vs C2"]
[]
["SARC Blue","B1",17,18,19,20,"B2",21,22,23,24,null,"Bracket B1 vs B2"]
[]
["GS","D1",25,26,27,28,"D2",29,30,31,32,null,"Bracket D1 vs D2"]
[]
[null,null,null,null,null,null,null,null,null,null,null,null,null,null,null,null,null,null,null," GS-Where's My Beaches At?"]
["Night 3","Vertical Brackets (Cross section of Divisions)"]
[null,"Each team Plays the 3 teams within their column plus one team from the adjacent column",null,null,null,null,null,null,null,null,"(2 games- A/B matchups)"]
[null,"8 team brackets at 4 locations with 2 courts each",null,null,null,null,null,null,null,null,"(2 games- C/D matchups)"]
[null,"4 games for each team"]
[null,"2 columns of 4 teams play at each location"]
[]
["SARC Red",1,2,"SARC Blue",3,4,"LK",5,6,"GS",7,8]
[null,9,10,null,11,12,null,13,14,null,15,16]
[null,17,18,null,19,20,null,21,22,null,23,24]
[null,25,26,null,27,28,null,29,30,null,31,32]

{"sheet":"# of games per night","index":9,"n_rows":50,"n_cols":18,"rows_kept":50,"cut":false,"hidden":true,"merged":[]}
["Night 1","ALL at Springdale",null,null,null,null,null,null,null,null,"Nights 2 and 3",null,"  - 3 HOST CLUBS (SARC, LKP, and GS)"]
["# games","time","Courts",null,null,null,null,null,null,null,null,null,"8 courts at 4 Sites w/ SARC counting as 2 Sites"]
[1,"06:00:00","court 1",null,"32 teams",null,null,null,null,null,null,null,null,"SARC Red and SARC Bluelue to be one perm court and one temp sand court"]
[2,null,"court 2",null,"3 games each",null,null,null,null,null,1,6,"court 1"]
[3,null,"court 3",null,"(32*3)/2",null,null,null,null,null,2,null,"court 2",null,"SARC Red","SARC Blue","LPK","GS"]
[4,null,"court 4",null,{"$f":"(32*3)/2","v":48},null,null,"# of games",null,null,3,"06:30:00","court 1",null,"2 courts","2 courts","2 courts","2 courts"]
[5,null,"court 5",null,null,null,null,null,null,null,4,null,"court 2",null,"8 teams","8 teams","8 teams","8 teams"]
[6,null,"court 6",null,null,null,null,null,null,null,5,7,"court 1"]
[7,"06:30:00","court 1",null,"4 total Sand courts at SARC w/ 2 temp Sand",null,null,null,null,null,6,null,"court 2",null,"Each Site- 8 teams"]
[8,null,"court 2",null,"Courts 3 and 4 are temporary sand courts on the soccer field",null,null,null,null,null,7,"07:30:00","court 1",null,"4 games each",null,"# of Games"]
[9,null,"court 3",null,"12 games on grass (courts 5 and 6)- no lights",null,null,null,null,null,8,null,"court 2",null,"(8*4)/2",null,"games per Site"]
[10,null,"court 4",null,"24 teams to play on grass",null,null,null,null,null,9,8,"court 1",null,{"$f":"(8*4)/2","v":16}]
[11,null,"court 5",null,"Best 8 teams only play sand",null,null,null,null,null,10,null,"court 2",null,"Occuring at 4 Sites"]
[12,null,"court 6",null,null,null,null,null,null,null,11,"08:30:00","court 1"]
[13,"07:00:00","court 1",null,"Games scheduled b/t 6 - 10:30 PM",null,null,null,null,null,12,null,"court 2",null,"Games scheduled b/t 6 PM - 10"]
[14,null,"court 2",null,null,null,null,null,null,null,13,9,"court 1"]
[15,null,"court 3",null,null,null,null,null,null,null,14,null,"court 2"]
[16,null,"court 4",null,null,null,null,null,null,null,15,"09:30:00","court 1"]
[17,null,"court 5",null,null,null,null,null,null,null,16,null,"court 2"]
[18,null,"court 6"]
[19,"07:30:00","court 1",null,null,null,null,null,null,"n "]
[20,null,"court 2"]
[21,null,"court 3"]
[22,null,"court 4"]
[23,null,"court 5"]
[24,null,"court 6"]
[25,"08:00:00","court 1"]
[26,null,"court 2"]
[27,null,"court 3"]
[28,null,"court 4"]
[29,null,"court 5"]
[30,null,"court 6"]
[31,"08:30:00","court 1"]
[32,null,"court 2"]
[33,null,"court 3"]
[34,null,"court 4"]
[35,null,"court 5",null,"if dark, can opt to play at 10:30"]
[36,null,"court 6",null,"if dark, can opt to play at 10:30"]
[37,"09:00:00","court 1"]
[38,null,"court 2"]
[39,null,"court 3"]
[40,null,"court 4"]
[41,"09:30:00","court 1"]
[42,null,"court 2"]
[43,null,"court 3"]
[44,null,"court 4"]
[45,"10:00:00","court 1"]
[46,null,"court 2"]
[47,null,"court 3"]
[48,null,"court 4"]

{"sheet":"Team # Match ups","index":10,"n_rows":51,"n_cols":33,"rows_kept":51,"cut":false,"hidden":true,"merged":[]}
["Night 1",null,null,null,null,null,null,null,null,null,null,null,"Night 2",null,null,null,null,null,null,null,null,null,null,null,"Night 3"]
[]
["# games","Bracket","Team  VS","Team",null,null,null,null,null,null,null,null,"# games","Bracket","Team  VS","Team",null,null,"# games","Bracket","Team  VS","Team",null,null,"# games","Bracket","Team  VS","Team",null,"# games","Bracket","Team  VS","Team"]
[1,"A",1,2,null,null,null,null,null,null,null,null,1,"SARC Red",1,5,null,null,1,"SARC Blue",17,21,null,null,1,"SARC Red",1,9,null,1,"LPK",5,13]
[2,"A",1,3,null,null,null,null,null,null,null,null,2,"SARC Red",1,6,null,null,2,"SARC Blue",17,22,null,null,2,"SARC Red",1,17,null,2,"LPK",5,21]
[3,"A",4,1,null,null,null,null,null,null,null,null,3,"SARC Red",7,1,null,null,3,"SARC Blue",23,17,null,null,3,"SARC Red",25,1,null,3,"LPK",29,5]
[4,"A",2,3,null,null,null,null,null,null,null,null,4,"SARC Red",8,1,null,null,4,"SARC Blue",24,17,null,null,4,"SARC Red",17,9,null,4,"LPK",21,13]
[5,"A",2,4,null,null,null,null,null,null,null,null,5,"SARC Red",2,5,null,null,5,"SARC Blue",18,21,null,null,5,"SARC Red",9,25,null,5,"LPK",13,29]
[6,"A",3,4,null,null,null,null,null,null,null,null,6,"SARC Red",2,6,null,null,6,"SARC Blue",18,22,null,null,6,"SARC Red",17,25,null,6,"LPK",21,29]
[7,"B",5,6,null,null,null,null,null,null,null,null,7,"SARC Red",7,2,null,null,7,"SARC Blue",23,18,null,null,7,"SARC Red",10,1,null,7,"LPK",14,5]
[8,"B",5,7,null,null,null,null,null,null,null,null,8,"SARC Red",8,2,null,null,8,"SARC Blue",24,18,null,null,8,"SARC Red",9,18,null,8,"LPK",13,22]
[9,"B",8,5,null,null,null,null,null,null,null,null,9,"SARC Red",5,3,null,null,9,"SARC Blue",21,19,null,null,9,"SARC Red",26,17,null,9,"LPK",30,21]
[10,"B",6,7,null,null,null,null,null,null,null,null,10,"SARC Red",6,3,null,null,10,"SARC Blue",22,19,null,null,10,"SARC Red",25,2,null,10,"LPK",29,6]
[11,"B",6,8,null,null,null,null,null,null,null,null,11,"SARC Red",3,7,null,null,11,"SARC Blue",19,23,null,null,11,"SARC Red",2,10,null,11,"LPK",6,14]
[12,"B",7,8,null,null,null,null,null,null,null,null,12,"SARC Red",3,8,null,null,12,"SARC Blue",19,24,null,null,12,"SARC Red",2,18,null,12,"LPK",6,22]
[13,"C",9,10,null,null,null,null,null,null,null,null,13,"SARC Red",5,4,null,null,13,"SARC Blue",21,20,null,null,13,"SARC Red",26,2,null,13,"LPK",30,6]
[14,"C",9,11,null,null,null,null,null,null,null,null,14,"SARC Red",6,4,null,null,14,"SARC Blue",22,20,null,null,14,"SARC Red",18,10,null,14,"LPK",22,14]
[15,"C",12,9,null,null,null,null,null,null,null,null,15,"SARC Red",4,7,null,null,15,"SARC Blue",20,23,null,null,15,"SARC Red",10,26,null,15,"LPK",14,30]
[16,"C",10,11,null,null,null,null,null,null,null,null,16,"SARC Red",4,8,null,null,16,"SARC Blue",20,24,null,null,16,"SARC Red",18,26,null,16,"LPK",22,30]
[17,"C",10,12]
[18,"C",11,12]
[19,"D",13,14,null,null,null,null,null,null,null,null,1,"LPK",9,13,null,null,1,"GS",25,29,null,null,1,"SARC Blue",3,11,null,1,"GS",7,15]
[20,"D",13,15,null,null,null,null,null,null,null,null,2,"LPK",9,14,null,null,2,"GS",25,30,null,null,2,"SARC Blue",3,19,null,2,"GS",7,23]
[21,"D",16,13,null,null,null,null,null,null,null,null,3,"LPK",15,9,null,null,3,"GS",31,25,null,null,3,"SARC Blue",27,3,null,3,"GS",31,7]
[22,"D",14,15,null,null,null,null,null,null,null,null,4,"LPK",16,9,null,null,4,"GS",32,25,null,null,4,"SARC Blue",19,11,null,4,"GS",23,15]
[23,"D",14,16,null,null,null,null,null,null,null,null,5,"LPK",10,13,null,null,5,"GS",26,29,null,null,5,"SARC Blue",11,27,null,5,"GS",15,31]
[24,"D",15,16,null,null,null,null,null,null,null,null,6,"LPK",10,14,null,null,6,"GS",26,30,null,null,6,"SARC Blue",19,27,null,6,"GS",23,31]
[25,"E",17,18,null,null,null,null,null,null,null,null,7,"LPK",15,10,null,null,7,"GS",31,26,null,null,7,"SARC Blue",12,3,null,7,"GS",16,7]
[26,"E",17,19,null,null,null,null,null,null,null,null,8,"LPK",16,10,null,null,8,"GS",32,26,null,null,8,"SARC Blue",11,20,null,8,"GS",15,24]
[27,"E",20,17,null,null,null,null,null,null,null,null,9,"LPK",13,11,null,null,9,"GS",29,27,null,null,9,"SARC Blue",28,19,null,9,"GS",32,23]
[28,"E",18,19,null,null,null,null,null,null,null,null,10,"LPK",14,11,null,null,10,"GS",30,27,null,null,10,"SARC Blue",27,4,null,10,"GS",31,8]
[29,"E",18,20,null,null,null,null,null,null,null,null,11,"LPK",11,15,null,null,11,"GS",27,31,null,null,11,"SARC Blue",4,12,null,11,"GS",8,16]
[30,"E",19,20,null,null,null,null,null,null,null,null,12,"LPK",11,16,null,null,12,"GS",27,32,null,null,12,"SARC Blue",4,20,null,12,"GS",8,24]
[31,"F",21,22,null,null,null,null,null,null,null,null,13,"LPK",13,12,null,null,13,"GS",29,28,null,null,13,"SARC Blue",28,4,null,13,"GS",32,8]
[32,"F",21,23,null,null,null,null,null,null,null,null,14,"LPK",14,12,null,null,14,"GS",30,28,null,null,14,"SARC Blue",20,12,null,14,"GS",24,16]
[33,"F",24,21,null,null,null,null,null,null,null,null,15,"LPK",12,15,null,null,15,"GS",28,31,null,null,15,"SARC Blue",12,28,null,15,"GS",16,32]
[34,"F",22,23,null,null,null,null,null,null,null,null,16,"LPK",12,16,null,null,16,"GS",28,32,null,null,16,"SARC Blue",20,28,null,16,"GS",24,32]
[35,"F",22,24]
[36,"F",23,24]
[37,"G",25,26]
[38,"G",25,27]
[39,"G",28,25]
[40,"G",26,27]
[41,"G",26,28]
[42,"G",27,28]
[43,"H",29,30]
[44,"H",29,31]
[45,"H",32,29]
[46,"H",30,31]
[47,"H",30,32]
[48,"H",31,32]